Cogmind - Beta 13 X2 @@@ ROGUE MODE // 2024.01.13 @ 23:34:40 Player: Boris Result: Destroyed by Architect with Modified Sigix Sheargun Performance ------------- Evolutions (9) 4500 Regions Visited (26) 5200 Robots Destroyed (494) 2470 Value Destroyed (30902) 30902 Prototype IDs (303) 6060 Alien Tech Used (9) 1800 Bonus (32309) 32309 TOTAL SCORE: 83241 Bonus ------- Triggered High Security 1500 High Alert Combat Kills 13017 Follower Combat Kills 1810 Awakened Behemoth Slayer 1000 Network Hubs Disabled 600 Met Zhirov 300 Met R17 at Cetus 500 Scanned by Researcher 500 Acquired SGEMP 2000 Delivered SGEMP 2000 Destroyed MAIN.C Guards 500 Met MAIN.C 5000 Destroyed MAIN.C Shell 5000 Zhirov Destroyed MAIN.C 3000 Met Architect 300 Destroyed A8 300 Destroyed A6 400 Friendly Fire -5418 Cogmind --------- Core Integrity 0/1600 Matter 369/550 Energy 1214/1224 System Corruption 1% Temperature Cool (0) Movement Walking (105) Location -1/Access_0 Parts ------- > --- POWER (2) -------- Quantum-Vortex Reactor > --- PROPULSION (6) --- Enhanced Flexi-carbon Leg Enhanced Flexi-carbon Leg Enhanced Flexi-carbon Leg Experimental Biometal Leg Experimental Biometal Leg Experimental Biometal Leg > --- UTILITY (12) ----- Experimental Targeting Computer Experimental Targeting Computer Experimental Targeting Computer Experimental Target Analyzer Experimental Core Analyzer Femtoactuators SHELL Armor Graphene Brace > --- WEAPON (5) ------- Enhanced Force Lance > --- INVENTORY (5) ---- Experimental Energy Well (600) Advanced Kinecellerator Experimental Weapon Cycler Core Stripper Peak State ------------ > --- POWER ------------ Quantum-Vortex Reactor > --- PROPULSION ------- Armored Heavy Treads Armored Heavy Treads Advanced Heavy Siege Treads > --- UTILITY ---------- Desublimator High-capacity Storage Unit Experimental Targeting Computer Experimental Target Analyzer Experimental Core Analyzer Improved Armor Integrity Analyzer Experimental Weapon Cycler SHELL Armor Graphene Brace Advanced Force Field > --- WEAPON ----------- Multirail Multirail Multirail Multirail Multirail > --- INVENTORY -------- Improved Quantum Reactor Armored Heavy Treads Biometal Heavy Treads 2N-1CE's Frost Array Experimental Energy Well Experimental Energy Well Experimental Target Analyzer Precision Energy Filter Advanced Kinecellerator Advanced Phase Shifter Improved Potential Cannon Multirail Multirail Multirail Multirail Core Stripper [Rating: 255] Favorites ----------- Power Constructs Engine Ion Engine Power Core Reinforced Fission Core Reactor Constructs Propulsion Constructs Treads Constructs Leg Experimental Biometal Leg Hover Unit Cooled Gravmag System Flight Unit Improved Q-thruster Utility Armored Scrap Engine Device Armored Scrap Engine Storage Large Storage Unit Processor Advanced Signal Interpreter Hackware Advanced Hacking Suite Protection SHELL Armor Weapon Constructs Energy Gun Constructs Energy Cannon Subdweller Beam Cannon Ballistic Gun Multirail Ballistic Cannon Constructs Launcher Heavy Rocket Launcher Special Weapon Multitool Impact Weapon Power Maul Slashing Weapon Axe Piercing Weapon CR-A16's Behemoth Slayer Special Melee Weapon Improved Datajack Build | -11 -10 -10 -8 -6 -6 -6 -6 -5 -5 -5 -5 -5 -4 -4 -4 -4 -4 -4 -3 -3 -3 -2 -2 -1 -1 -1 ------- Run | Yrd Mat Sub Rec Fac Low Low Zio Pro Fac Upp Upp Zhi Pro Fac Ext Cet Arc Hub Res Qua Sec Res Tes Acc Com Ac0 Slots Evolved 18 | . . . . 8 . . . . 2 . . . . 2 . . . . 2 . . 2 . 2 . . Power 1 | . . . . . . . . . . . . . . 1 . . . . . . . . . . . . Propulsion 4 | . . . . 2 . . . . 1 . . . . . . . . . . . . 1 . . . . Utility 10 | . . . . 4 . . . . 1 . . . . 1 . . . . 1 . . 1 . 2 . . Weapon 3 | . . . . 2 . . . . . . . . . . . . . . 1 . . . . . . . Parts Attached 743 | 8 18 21 7 24 11 5 11 9 21 19 2 10 6 43 42 14 14 20 35 46 93 57 70 38 52 47 Power 10 | 1 . 1 . . . . . . . . . . . 1 1 . . 1 1 3 . 1 . . . . Engine 2 | 1 . 1 . . . . . . . . . . . . . . . . . . . . . . . . Core 2 | . . . . . . . . . . . . . . . 1 . . 1 . . . . . . . . Reactor 6 | . . . . . . . . . . . . . . 1 . . . . 1 3 . 1 . . . . Propulsion 22 | 2 1 3 . . . . . . . . . . . . . . . . . . . 2 . . 4 10 Treads 12 | 2 1 3 . . . . . . . . . . . . . . . . . . . . . . 4 2 Leg 8 | . . . . . . . . . . . . . . . . . . . . . . . . . . 8 Wheel . | . . . . . . . . . . . . . . . . . . . . . . . . . . . Hover 1 | . . . . . . . . . . . . . . . . . . . . . . 1 . . . . Flight 1 | . . . . . . . . . . . . . . . . . . . . . . 1 . . . . Utility 520 | 3 11 11 1 15 8 5 9 9 17 15 2 6 6 38 28 7 9 15 23 36 75 47 42 30 31 21 Device 439 | 2 10 11 . 7 8 5 8 8 16 15 2 4 6 35 23 1 4 10 17 31 68 41 40 27 23 17 Storage 10 | 1 1 . . 1 . . 1 . . . . . . 1 . 1 . . . . 1 1 1 . 1 . Processor 20 | . . . . 3 . . . . . . . . . . . . . . 2 . 2 . . 2 7 4 Hackware 12 | . . . 1 3 . . . 1 1 . . 1 . 2 . . . 1 1 . . 1 . . . . Protection 39 | . . . . 1 . . . . . . . 1 . . 5 5 5 4 3 5 4 4 1 1 . . Artifact . | . . . . . . . . . . . . . . . . . . . . . . . . . . . Weapon 191 | 2 6 6 6 9 3 . 2 . 4 4 . 4 . 4 13 7 5 4 11 7 18 7 28 8 17 16 Energy Gun 6 | 1 2 2 . . . . . . . . . . . . . . . . . . . . 1 . . . Energy Cannon 27 | . . 2 3 . . . . . . . . . . . . . . . . 1 . . 7 3 3 8 Ballistic Gun 36 | 1 1 1 . . . . . . . 1 . . . . . . . . . . 5 5 9 1 8 4 Ballistic Cannon 5 | . 1 . . . . . . . . 1 . 1 . . . . . . . . . . . . . 2 Launcher 27 | . . 1 . 2 . . . . . 2 . 1 . . 3 3 . . 2 1 5 1 1 3 2 . Special Weapon 25 | . 2 . 3 2 . . . . 2 . . 1 . 1 3 1 2 3 4 1 . . . . . . Impact Weapon 15 | . . . . 1 1 . 1 . 2 . . . . 1 . . . . . 1 3 . 2 . 2 1 Slashing Weapon 16 | . . . . 3 2 . . . . . . . . . 4 3 3 1 . . . . . . . . Piercing Weapon 33 | . . . . . . . 1 . . . . 1 . 2 3 . . . 5 3 5 1 8 1 2 1 Special Melee Weapon 1 | . . . . 1 . . . . . . . . . . . . . . . . . . . . . . Unidentified Prototypes 46 | . . . . 1 . . 2 . . . . 2 . . . 3 . 1 1 7 13 2 10 1 1 2 Corrupted Parts 4 | . . . . 3 . . . . . . . . . . . 1 . . . . . . . . . . System Corruption 15 | . . . . 11 . . . . . . . . . . . 4 . . . . . . . . . . Parts Lost 49 | . . 4 . 2 . . . 2 . 2 . . . 2 1 . . . 4 1 2 5 . . 1 23 Power 2 | . . . . . . . . 1 . . . . . . . . . . . . . 1 . . . . Propulsion 8 | . . 2 . . . . . 1 . . . . . . . . . . . . . . . . . 5 Utility 16 | . . 1 . 1 . . . . . 1 . . . 2 . . . . 1 . 2 1 . . . 7 Weapon 23 | . . 1 . 1 . . . . . 1 . . . . 1 . . . 3 1 . 3 . . 1 11 Highest Loss Streak 5 | . . 3 . 2 . . . 1 . 2 . . . 1 1 . . . 3 1 1 2 . . 1 5 To Critical Strikes 1 | . . 1 . . . . . . . . . . . . . . . . . . . . . . . . Average Slot Usage (%) 71 | . 99 99 99 58 65 66 60 65 64 62 64 63 64 63 64 68 67 67 72 75 65 64 63 56 62 74 Engine 2 | . 14 14 14 1 . . . 3 . . . . . . . . . . . . . . . . . . Core 2 | . . . . 3 6 6 6 2 5 5 5 5 5 3 6 6 5 5 . . . . . . . . Reactor 2 | . . . . . . . . . . . . . . 3 . 3 4 3 7 8 4 4 3 4 4 4 Treads 7 | . 28 27 28 3 . . . . . . . . . . . . . . 3 4 . . . . 7 8 Leg 1 | . . . . . 3 5 . 4 4 2 . 2 5 1 . . 4 5 . . . 3 4 4 . 7 Device 12 | . 13 14 . 9 19 20 16 15 11 17 17 16 17 12 9 5 8 9 10 8 13 15 16 15 13 14 Storage 6 | . 14 14 14 6 6 6 3 6 5 5 5 5 5 5 5 5 5 5 4 4 4 4 4 4 4 3 Processor 6 | . . . . 6 6 6 6 6 5 5 5 5 5 5 5 5 5 5 7 9 10 13 13 9 12 16 Hackware 5 | . . . 13 5 . . . 4 10 5 5 5 5 11 15 15 11 14 12 14 7 5 4 1 . . Energy Gun 2 | . 13 4 . 2 . . . . . . . . . . . . . . 5 8 . . 3 4 3 . Energy Cannon 5 | . . 15 24 5 13 10 6 8 1 . . . . . . 4 5 5 1 . 8 6 2 3 . . Ballistic Gun 3 | . 12 1 . . . . . 3 2 3 . . . . 1 5 5 5 4 4 4 6 3 1 8 13 Ballistic Cannon 3 | . 1 5 . . . 2 6 . 6 5 11 10 11 8 7 . . . 3 3 . . 3 4 1 1 Naked Turns . | . . . . . . . . . . . . . . . . . . . . . . . . . . . Heaviest Build 230 | 15 31 42 42 61 64 59 53 58 62 75 75 75 75 86 86 105 102 97 97 109 146 185 196 230 227 164 Greatest Support 229 | 40 40 40 40 64 87 87 87 87 88 127 127 191 191 202 108 136 137 137 137 112 112 209 229 229 229 215 Greatest Overweight (x) 2 | . . 1 1 2 . . . 1 1 . . . . . . . . . . . 1 1 . 1 2 1 Average Overweight (x) . | . . . . . . . . . . . . . . . . . . . . . . . . . . . Largest Inventory Capacity 25 | 8 15 15 15 15 15 15 15 15 15 15 15 15 15 15 15 20 20 20 20 20 20 25 25 25 25 20 Average Capacity 17 | 5 13 15 15 15 15 15 10 15 15 15 15 15 15 15 15 18 20 20 20 20 20 24 25 25 22 19 Most Carried 25 | 6 15 15 15 15 15 15 15 15 15 15 15 15 15 15 15 20 20 20 20 20 20 25 25 23 25 20 Average Carried 16 | 4 11 14 14 14 14 14 10 14 14 14 15 15 15 14 14 16 19 19 19 19 19 23 24 21 21 15 Final Capacity 25 | 8 15 15 15 15 15 15 15 15 15 15 15 15 15 15 15 20 20 20 20 20 20 25 25 25 20 5 Final Carried 25 | 6 14 15 15 15 14 15 15 15 15 15 15 15 15 14 15 20 20 20 20 20 20 24 25 21 20 5 Scrap Engine Consumption 383 | . . . . 73 21 14 2 18 18 13 2 5 1 42 27 18 3 6 13 15 24 11 10 4 43 . Constructs Created 21 | . . . . 5 1 . . 1 . 1 . . . 1 1 . . . 4 . 1 2 . . 4 . Constructs Modified 118 | . . . . 13 1 2 . 15 11 7 . 2 . 15 8 4 2 1 7 1 2 1 8 2 16 . Class Distribution -------------------- 33% | Construct 26% | Hacker-Construct 16% | Mutant 9% | Gunner 5% | Commander-Mutant Dominant Class ---------------- Mutant | -10/Materials Mutant | -10/Subcaves Mutant | -8/Recycling Commander-Mutant | -6/Factory Construct | -6/Lower Caves Construct | -6/Lower Caves Construct | -6/Zion Construct | -5/Proximity Caves Hacker-Construct | -5/Factory Construct | -5/Upper Caves Construct | -5/Upper Caves Construct | -5/Zhirov Construct | -4/Proximity Caves Hacker-Construct | -4/Factory Hacker-Construct | -4/Extension Hacker-Construct | -4/Cetus Hacker-Construct | -4/Archives Hacker-Construct | -4/Hub_04(d) Hacker-Construct | -3/Research Hacker-Construct | -3/Quarantine Construct | -3/Section 7 Gunner | -2/Research Construct | -2/Testing Construct | -1/Access Gunner | -1/Command Scavenger-Gunner | -1/Access_0 Resources | -11 -10 -10 -8 -6 -6 -6 -6 -5 -5 -5 -5 -5 -4 -4 -4 -4 -4 -4 -3 -3 -3 -2 -2 -1 -1 -1 ----------- Run | Yrd Mat Sub Rec Fac Low Low Zio Pro Fac Upp Upp Zhi Pro Fac Ext Cet Arc Hub Res Qua Sec Res Tes Acc Com Ac0 Matter Collected 17075 | 311 279 319 123 541 188 343 2097 155 210 312 74 310 77 700 742 271 524 186 594 1019 2710 1520 785 641 810 1234 Remotely 17 | . . . . . . . . 17 . . . . . . . . . . . . . . . . . . Salvage Created 31695 | 150 543 280 500 1082 414 223 . 585 474 826 62 332 123 1023 1078 1292 598 354 785 1299 3406 2938 2426 5603 3420 1879 Parts 1311 | 14 33 21 14 42 13 7 . 29 17 26 2 10 3 52 45 51 45 16 46 43 151 173 95 195 56 112 Haulers Intercepted 9 | . 2 . . 2 . . . . 1 . . . . 1 . . . . 1 . 1 . 1 . . . Recyclers Shooed 10 | . . . 2 1 . . . . . . . . . 2 . . . . . . . . 1 4 . . Parts Field Recycled . | . . . . . . . . . . . . . . . . . . . . . . . . . . . Retrieved Matter . | . . . . . . . . . . . . . . . . . . . . . . . . . . . Parts Self-Destructed 80 | . . 12 . . 5 7 . 26 . 21 1 6 2 . . . . . . . . . . . . . Prevented 12 | . . . . . 7 4 . . . . . . 1 . . . . . . . . . . . . . Kills | -11 -10 -10 -8 -6 -6 -6 -6 -5 -5 -5 -5 -5 -4 -4 -4 -4 -4 -4 -3 -3 -3 -2 -2 -1 -1 -1 ------- Run | Yrd Mat Sub Rec Fac Low Low Zio Pro Fac Upp Upp Zhi Pro Fac Ext Cet Arc Hub Res Qua Sec Res Tes Acc Com Ac0 Combat Hostiles Destroyed 407 | . 8 10 5 22 6 4 . 6 4 18 1 . 2 12 14 12 4 4 11 13 45 37 32 100 17 20 Melee 2 | . . . . . . . . . . . . . . . 2 . . . . . . . . . . . Guns 89 | . 8 1 . . . . . . . 3 . . . . 2 . . 1 3 6 14 18 3 5 5 20 Cannons 163 | . . 6 4 4 4 2 . 6 3 13 1 . 2 12 6 . 4 3 4 4 22 15 13 34 1 . AOE 108 | . . 3 . 10 . . . . . 1 . . . . 4 3 . . 3 2 5 2 14 54 7 . Classes Destroyed 31 | 2 4 2 2 6 3 . . . 1 . . . . 1 1 1 . . . 2 2 1 2 1 . . Worker 15 | . . . . 1 . . . . . . . . . . . . . . . . 3 4 4 . 3 . Builder 14 | . 2 . . 2 . . . . . . . . . . 2 . . . 2 . . 2 3 1 . . Tunneler 5 | 3 1 . . . . . . . . . . . . . . . . . . . . . . 1 . . Hauler 9 | . 2 . . 2 . . . . 1 . . . . 1 . . . . 1 . 1 . 1 . . . Recycler 16 | 1 . . 3 . . . . . 1 . . . . 1 1 . . 1 . 2 1 . 1 3 1 . Carrier 1 | . . . . . . . . . . . . . . . . 1 . . . . . . . . . . Minesweeper 3 | . . . . . 1 . . 1 . . . . 1 . . . . . . . . . . . . . Mechanic 9 | . 1 . . 1 . . . . . . . . . . . . . . . . 1 . 1 4 1 . Operator 13 | . . . . . . . . . . . . . . 1 2 . 8 . 1 . 1 . . . . . Watcher 19 | . . . . . . . . . 1 . . . . 1 1 2 . 1 1 1 4 4 1 2 . . Swarmer 51 | . . 3 . 6 . 1 . 1 . 8 . . . . 5 . . . 3 7 5 . . 6 6 . Cutter 1 | . . . . . . . . . . . . . . . . . . . . . . 1 . . . . Saboteur 3 | . . . . . . . . . . . . . . . . . . . . . . . . 3 . . Grunt 123 | . 8 . . 6 5 1 . . 1 6 . . . . 3 6 . . 3 . 13 9 12 50 . . Brawler 12 | . . . . 1 . . . 2 . . . . . . . . . . . . 2 1 2 4 . . Duelist 16 | . . . . 1 . . . 1 . 2 . . . . . . . . . . 1 . 2 9 . . Protector 7 | . . . . 1 . . . . . . . . . . . . . . . . . 1 2 3 . . Researcher 7 | . . . . . . . . . . . . . . . . . . . . 1 3 . 3 . . . Sentry 40 | . . . 4 4 . 1 . 2 2 2 1 . . 2 4 . 4 2 . . 5 3 . 4 . . Demolisher 1 | . . . 1 . . . . . . . . . . . . . . . . . . . . . . . Specialist 2 | . . . . . . . . . . . . . . . . . . . . . . . 2 . . . Hunter 27 | . . . . . 1 1 . . 1 . . . . 2 . . . . . . 2 6 2 6 6 . Programmer 65 | . . . . 2 . . . 1 . . . . 2 8 . . . 2 3 5 11 14 6 11 . . Heavy 2 | . . . . 1 . . . . . . . . . . . . . . 1 . . . . . . . Behemoth 8 | . . . . . . . . . . . . . . . 2 . . . 1 . 2 2 . 1 . . Cetus Guard 6 | . . . . . . . . . . . . . . . . 6 . . . . . . . . . . M Guard 2 | . . . . . . . . . . . . . . . . . . . . . . . . . 2 . Enhanced Grunt 12 | . . . . . . . . . . . . . . . . . . . . . . . . . . 12 Enhanced Hunter 6 | . . . . . . . . . . . . . . . . . . . . . . . . . . 6 Combat Programmer 2 | . . . . . . . . . . . . . . . . . . . . . . . . . 2 . Investigator 1 | . . . . . . . . . . . . . . . . . . . . . . . . 1 . . Striker 4 | . . . . . . . . . . . . . . . . . . . . . . . 2 2 . . Executioner 3 | . . . . . . . . . . . . . . . . . . . . . 2 . . 1 . . Alpha 7 3 | . . . . . . . . . . . . . . . . . . . . . 2 . 1 . . . Fortress 1 | . . . . . . . . . . . . . . . . . . . . 1 . . . . . . Protovariant Y 1 | . . . . . . . . . . . . . . . . . . . . . . . 1 . . . Subdweller 7 | . . 7 . . . . . . . . . . . . . . . . . . . . . . . . Decomposer 1 | . . . . . . . . . . 1 . . . . . . . . . . . . . . . . Samaritan 1 | . . . . . 1 . . . . . . . . . . . . . . . . . . . . . Savage 1 | . . . . . . . . 1 . . . . . . . . . . . . . . . . . . Butcher 1 | . . . . . . . . . . . . . . . 1 . . . . . . . . . . . Guerrilla 1 | . . . . . . . . . . . . . . . 1 . . . . . . . . . . . Best Kill Streak 58 | 4 2 3 2 7 3 3 . 2 2 9 1 . 2 3 5 4 2 2 6 4 6 8 9 58 14 5 Combat Bots Only 52 | . 2 3 1 7 3 3 . 2 2 9 1 . 2 2 5 3 1 1 6 4 5 6 5 52 10 5 Max Kills in Single Turn 5 | 2 2 2 2 3 1 1 . 1 1 1 1 . 1 1 4 2 1 2 5 2 3 2 5 5 2 1 Gunslinging . | . . . . . . . . . . . . . . . . . . . . . . . . . . . Exploded 4 | . . 2 . 3 . . . . . 1 . . . . 4 2 . . 3 2 2 1 3 4 2 . Melee 1 | . . . . . . . . . . . . . . . 1 . . . . . . . . . . . Uniques/NPCs Destroyed 4 | . . . . . . . . . . . . . . . . 1 . . . . . . . . 1 2 A7 (-4/Cetus) MAIN.C Shell (-1/Command) A8 (-1/Access_0) A6 (-1/Access_0) Combat | -11 -10 -10 -8 -6 -6 -6 -6 -5 -5 -5 -5 -5 -4 -4 -4 -4 -4 -4 -3 -3 -3 -2 -2 -1 -1 -1 -------- Run | Yrd Mat Sub Rec Fac Low Low Zio Pro Fac Upp Upp Zhi Pro Fac Ext Cet Arc Hub Res Qua Sec Res Tes Acc Com Ac0 Hostile Shots Fired 2974 | . 52 40 6 109 28 17 . 26 15 115 6 . 14 108 78 46 20 66 77 44 260 398 173 377 140 759 Missed 946 | . 12 9 1 57 9 11 . 5 1 22 2 . 6 33 14 16 3 19 14 11 71 142 56 110 45 277 Damage Taken 34298 | . 523 605 165 643 363 78 . 502 296 1989 94 . 158 1398 1686 633 435 1156 1493 906 1818 2313 993 3180 1344 11527 Core 2918 | . 106 61 12 100 . 14 . 32 74 77 . . 18 137 137 18 . 82 65 90 99 228 59 181 127 1201 Absorbed by Shields 9856 | . . . . 115 4 . . . . . . . . . . 130 . . . . 1785 1788 603 1927 687 2817 Reduced by Siege Mode 611 | . . . . . . . . . . . . . . . . . . . 13 74 79 . . . . 445 Ignored by Resistances 7399 | . . . . . . . . . . . . . . . 227 39 . . 183 28 866 1994 1538 1719 669 136 Regen/Repaired (Parts) 14824 | . . . . 209 141 144 12 241 175 386 . 197 . 862 966 499 710 3 1187 360 139 608 1397 1394 2798 2396 Core Remaining (%) 74 | 100 . . 28 . . . . 82 . . . . 83 . . . . 67 . . 79 . 80 . . . Volleys Fired 1301 | 12 51 76 23 68 17 10 . 40 8 48 6 21 20 52 44 37 39 23 40 26 153 97 65 117 69 139 Largest 5 | 2 2 2 2 2 2 2 . 2 2 3 2 1 1 2 2 1 3 2 4 4 4 4 4 4 5 5 Hottest 438 | 70 100 160 160 145 145 139 . 145 145 170 119 53 53 123 151 53 181 151 222 209 438 264 289 289 225 335 Shots Fired 2357 | 24 98 93 31 77 22 13 . 52 14 77 9 21 20 72 71 37 52 37 90 66 251 212 111 178 88 541 Gun 1250 | 24 91 35 . 21 . . . 3 2 36 . . . . 12 3 13 15 40 45 130 126 44 47 50 513 Cannon 978 | . 4 56 31 45 22 13 . 49 12 39 9 1 20 72 58 . 21 22 49 20 115 81 64 116 31 28 Launcher 75 | . . 2 . 11 . . . . . 2 . . . . 1 21 . . 1 1 6 5 3 15 7 . Special 54 | . 3 . . . . . . . . . . 20 . . . 13 18 . . . . . . . . . Kinetic 1381 | 12 48 14 . . . 3 . 17 14 71 9 1 20 57 70 3 13 15 22 17 132 142 83 73 25 520 Thermal 822 | 12 46 73 31 44 5 . . 35 . . . 20 . 15 . 13 39 22 60 43 113 65 19 90 56 21 Explosive 54 | . . 2 . 11 . . . . . 2 . . . . 1 . . . 1 1 6 5 3 15 7 . Electromagnetic 100 | . 4 4 . 22 17 10 . . . 4 . . . . . 21 . . 7 5 . . 6 . . . Robot Hit Streak 64 | 4 21 16 10 22 8 4 . 9 7 11 4 10 3 15 12 13 6 9 13 19 24 17 8 22 23 64 Robot Miss Streak 8 | 3 2 2 2 3 2 1 . 4 1 4 1 1 1 3 3 2 4 2 2 1 7 6 6 5 2 8 Penetration Max 2 | . . . . . . . . . . 1 . . . 1 . . 1 . 1 1 1 2 1 1 . . Secondary Targets 15 | . 1 . . . . . . . . . . . . . . . . . . . 4 3 1 . . 6 Max Gunslinging Chain 1 | . 1 . . . . . . . . . . . . . . . . . . . 1 1 1 . . 1 Capacitor 114 | . . . . . . . . . . . . . . . . . . . . . . . . 58 56 . Shots Hit Robots 1843 | 12 74 39 18 50 22 9 . 33 14 49 4 19 7 59 59 34 36 25 55 46 192 138 95 116 136 502 Core Hits 1288 | 5 26 15 8 38 5 2 . 10 6 30 1 8 3 18 31 26 18 12 27 24 106 130 69 142 72 456 Critical Kills 33 | . . . 2 3 . . . . . . 1 . 1 1 . . . . 2 . 1 1 2 4 5 10 Critical Parts Destroyed 48 | . 1 . . . . . . . 1 4 . . 2 3 . . . . . . 4 2 1 3 1 26 Critical Strikes 151 | . 4 1 2 3 . 1 . . 1 5 2 1 3 4 2 4 . 2 3 2 7 5 11 7 12 69 Burn 2 | . 2 . . . . . . . . . . . . . . . . . . . . . . . . . Meltdown 11 | . . . 2 3 . . . . . . . . . . . . . . . . . . . 3 3 . Destroy 104 | . 1 . . . . . . . . 3 2 . 3 4 . . . . 2 . 6 3 4 4 3 69 Blast 6 | . 1 1 . . . . . . . 1 . . . . 1 1 . 1 . . . . . . . . Corrupt 2 | . . . . . . 1 . . . . . . . . . . . . . 1 . . . . . . Smash 2 | . . . . . . . . . 1 1 . . . . . . . . . . . . . . . . Sever 5 | . . . . . . . . . . . . . . . 1 3 . 1 . . . . . . . . Impale 19 | . . . . . . . . . . . . 1 . . . . . . 1 1 1 2 7 . 6 . Melee Attacks 286 | . . . . 8 6 1 1 . 9 8 . 2 . 6 23 15 9 6 13 16 19 10 52 1 77 4 Kinetic 60 | . . . . . . . . . . . . . . . . . . . . 5 5 . 1 . 47 2 Impact 17 | . . . . . . . . . 9 8 . . . . . . . . . . . . . . . . Slashing 53 | . . . . 4 6 1 1 . . . . . . . 11 15 9 6 . . . . . . . . Piercing 152 | . . . . . . . . . . . . 2 . 6 12 . . . 13 11 14 10 51 1 30 2 Sneak Attacks 63 | . . . . 6 2 . . . 3 1 . . . 2 10 15 9 . 1 2 5 3 4 . . . Combat Hostiles 5 | . . . . . . . . . 1 . . . . . . . . . . . 2 1 1 . . . Follow-up Attacks . | . . . . . . . . . . . . . . . . . . . . . . . . . . . Damage Inflicted 115076 | 165 978 982 510 3129 1079 451 . 1824 835 2262 174 322 578 3324 3352 2854 1891 1140 2278 2120 10025 7276 9987 26555 11566 19419 Guns 30374 | 165 915 163 . 521 . . . 37 46 562 . . . . 233 51 242 407 802 869 3394 3750 993 1463 1577 14184 Cannons 41783 | . 33 657 497 1010 824 451 . 1787 352 1456 174 85 578 3147 1866 . 710 588 812 487 4661 2734 4085 9619 1944 3226 Explosions 30471 | . 30 158 . 1447 . . . . . 110 . . . . 265 1745 . . 415 275 1602 550 3293 15395 3337 1849 Melee 12027 | . . . . 151 255 . . . 437 134 . 135 . 177 988 967 891 133 249 489 368 169 1616 . 4708 160 Ramming 180 | . . 4 13 . . . . . . . . . . . . . . 12 . . . 73 . 78 . . Kinetic 42396 | 78 531 171 . . . . . 435 398 2018 174 85 578 2793 2099 51 242 407 554 435 3209 3958 2947 3113 3678 14442 Thermal 47709 | 87 395 606 497 735 109 . . 1389 . . . 102 . 354 . 386 758 588 951 1089 4949 2526 3353 18876 5052 4907 Explosive 12197 | . . 158 . 1447 . . . . . 110 . . . . 265 . . . 415 275 1602 550 1585 4488 1302 . Electromagnetic 4107 | . 52 43 . 796 715 451 . . . . . . . . . 1450 . . 109 5 . . 486 . . . Impact 571 | . . . . . . . . . 437 134 . . . . . . . . . . . . . . . . Slashing 3004 | . . . . 151 255 . . . . . . . . . 607 967 891 133 . . . . . . . . Piercing 4912 | . . . . . . . . . . . . 135 . 177 381 . . . 249 316 265 169 1616 . 1534 70 Highest Corruption 13 | . . . . 13 6 6 6 2 . . . . 1 5 5 9 9 13 2 3 10 1 1 1 3 1 Average Corruption 4 | . . . . 9 6 6 6 2 . . . . 1 2 4 7 7 2 1 1 8 1 1 1 1 1 Corruption Purged 28 | . . . . 7 . . . . . . . . . 4 1 . 9 . 2 2 . . . . 3 . Corruption Blocked 20 | . . . . . . . . . . . . . . . . . . . . . . . 20 . . . Effects 276 | . . . . 51 19 12 1 6 . . . . 4 15 33 10 13 6 2 9 71 5 14 2 3 . Message Errors 71 | . . . . 13 6 2 . 1 . . . . . 6 10 2 6 1 . 2 16 . 4 . 2 . Matter Fused 78 | . . . . 17 8 5 1 2 . . . . 3 2 9 . 2 1 . 2 20 2 4 . . . Heat Flow Errors 28 | . . . . 3 2 1 . 3 . . . . . 2 3 1 . 1 1 1 7 2 1 . . . Energy Discharges 34 | . . . . 7 3 1 . . . . . . . 3 5 2 1 1 . 1 10 . . . . . Parts Rejected 2 | . . . . . . . . . . . . . . . . 1 1 . . . . . . . . . Parts Fused 2 | . . . . . . . . . . . . . . . . . . 1 . . 1 . . . . . Data Loss (minor) 21 | . . . . 3 . 1 . . . . . . 1 1 4 2 . 1 . . 5 . 2 1 . . Data Loss (major) 14 | . . . . 3 . 1 . . . . . . . 1 1 1 . . 1 2 3 . 1 . . . Misfires 4 | . . . . . . . . . . . . . . . . . . . . . 2 1 1 . . . Alerts 7 | . . . . 3 . 1 . . . . . . . . 1 1 . . . . 1 . . . . . Weapon Failures 15 | . . . . 2 . . . . . . . . . . . . 3 . . 1 6 . 1 1 1 . Overload Shots 6 | . . . . . . . . . . . . . . . . . . . . . 4 2 . . . . Overflow Damage 7285 | . . . 41 72 144 . . 105 206 89 . 80 120 524 254 68 176 44 25 139 673 177 1076 2676 563 33 Projectiles 4108 | . . . 41 28 5 . . 105 . 5 . 80 120 444 9 . 24 44 25 26 597 156 702 1569 128 . Explosions 1689 | . . . . 38 . . . . . . . . . . 33 53 . . . 68 76 6 123 1099 160 33 Melee 1488 | . . . . 6 139 . . . 206 84 . . . 80 212 15 152 . . 45 . 15 251 8 275 . Knockbacks 66 | . 1 3 1 . . . . . 1 7 . . 4 17 6 . . . . . 5 1 11 8 . 1 Impact 2 | . . . 1 . . . . . 1 . . . . . . . . . . . . . . . . . Kinetic 61 | . 1 3 . . . . . . . 7 . . 4 15 6 . . . . . 5 1 11 7 . 1 Secondary 3 | . . . . . . . . . . . . . . 2 . . . . . . . . . 1 . . Self-Inflicted Damage 726 | . 24 17 . . . . . . . 12 . . . . . 91 . . . . 65 . 249 246 22 . Shots 13 | . 1 1 . . . . . . . 1 . . . . . 2 . . . . 1 . 3 3 1 . Rammed 3 | . . 1 2 . . . . . . . . . . . . . . . . . . . . . . . Targets Rammed 12 | . . 1 2 . . . . . . . . . . . . . . 1 . . . 4 . 4 . . Kicked 9 | . . . . . . . . . . . . . . . . . . 1 . . . 4 . 4 . . Crushed . | . . . . . . . . . . . . . . . . . . . . . . . . . . . Highest Temperature 455 | 72 117 126 455 267 257 192 . 321 123 371 . . . 242 251 82 196 225 342 171 350 316 322 346 306 296 Average Temperature 90 | 31 33 62 105 76 97 89 . 141 55 131 . . . 30 64 31 75 84 121 54 126 73 87 111 90 58 Received Heat Transfer 2991 | . 324 42 . 146 139 6 . 63 18 459 9 . . 60 249 77 54 36 602 18 128 120 20 310 111 . Effects 5 | . . . 1 . 2 . . . . . . . . . . . . . 1 . . . 1 . . . Shutdowns 1 | . . . . . . . . . . . . . . . . . . . . . . . 1 . . . Interference 2 | . . . . . 2 . . . . . . . . . . . . . . . . . . . . . Matter Decay 1 | . . . . . . . . . . . . . . . . . . . 1 . . . . . . . Damage (major) 1 | . . . 1 . . . . . . . . . . . . . . . . . . . . . . . Siege Activations 30 | . . . . . . . . . . . . . . . . . . . 2 3 2 . . . . 23 Total Turns 313 | . . . . . . . . . . . . . . . . . . . 27 60 55 . . . . 171 Longest Duration 29 | . . . . . . . . . . . . . . . . . . . 17 25 29 . . . . 27 Robots Corrupted 19 | . . . . 4 2 2 . . . . . . . . . 10 . . . . . . 1 . . . Combat Hostiles 18 | . . . . 4 2 2 . . . . . . . . . 9 . . . . . . 1 . . . Parts Fried 46 | . . . . 8 4 7 . . 4 . . . . . 1 14 . . . . . . 8 . . . Impact Corruptions 16 | . . . . . . . . . 8 6 . . . . . . . . . . . 1 . 1 . . Robots Melted 18 | . . . 2 6 . . . . . . . . . . . . . . . . . . . 6 4 . Combat Hostiles 15 | . . . 1 4 . . . . . . . . . . . . . . . . . . . 6 4 . Parts Melted 54 | . 3 . 3 14 1 . . 3 . . . . . . . 1 1 1 1 2 5 . 1 12 6 . Heat Transferred 31263 | 259 1271 816 678 1055 148 . . 1250 . . . 450 . . . 355 607 370 1036 1110 2653 1147 2090 12531 2893 544 Parts Sabotaged 1 | . . . . . . . . . . . . . . . . . . . . . . 1 . . . . Parts Stolen . | . . . . . . . . . . . . . . . . . . . . . . . . . . . Parts Stripped 198 | . . . . . . . . . . . . . . . . . . . . 18 24 . 13 . 143 . Power Chain Reactions 4 | . 1 . . . . . . . . . . . . . . 3 . . . . . . . . . . Missiles Intercepted 12 | . . . . . . . . . . . . . . . . . . . . . . . . . 12 . Alert | -11 -10 -10 -8 -6 -6 -6 -6 -5 -5 -5 -5 -5 -4 -4 -4 -4 -4 -4 -3 -3 -3 -2 -2 -1 -1 -1 ------- Run | Yrd Mat Sub Rec Fac Low Low Zio Pro Fac Upp Upp Zhi Pro Fac Ext Cet Arc Hub Res Qua Sec Res Tes Acc Com Ac0 Peak Influence 4576 | 20 146 . 238 665 . . . . 248 . . . . 252 337 670 486 303 303 283 957 1708 1595 4576 3694 . Initial 2928 | . 13 . 50 500 . . . . 93 . . . . . 114 154 260 54 159 88 80 513 1100 956 2928 . Average 417 | 11 56 . 46 283 . . . . 70 . . . . 95 146 479 303 96 156 176 431 859 1215 2409 3273 . Maximum Alert Level 5 | . . . 1 2 . . . . 1 . . . . 1 1 2 2 1 1 1 3 5 4 5 5 . Low Security (%) 61 | 100 100 . 97 44 . . . . 97 . . . . 82 66 7 29 89 85 57 22 . . . 92 . Level 1 12 | . . . 2 19 . . . . 2 . . . . 17 33 17 42 10 14 42 24 . . . . . Level 2 11 | . . . . 36 . . . . . . . . . . . 74 27 . . . 33 41 . . . . Level 3 5 | . . . . . . . . . . . . . . . . . . . . . 18 33 27 15 . . Level 4 5 | . . . . . . . . . . . . . . . . . . . . . . 19 72 16 . . Level 5 . | . . . . . . . . . . . . . . . . . . . . . . . . 7 4 . High Security 2 | . . . . . . . . . . . . . . . . . . . . . . 5 . 60 3 . Max Security . | . . . . . . . . . . . . . . . . . . . . . . . . . . . Squads Dispatched 82 | . 2 . . 6 . . . . 4 . . . . 5 2 . . 4 4 3 9 13 7 18 5 . Investigation 9 | . 1 . . 1 . . . . 1 . . . . 1 . . . 3 1 . . 1 . . . . Extermination 22 | . . . . 3 . . . . 1 . . . . 3 . . . 1 2 2 5 3 2 . . . Reinforcement 17 | . 1 . . 2 . . . . . . . . . 1 2 . . . 1 1 2 3 3 . 1 . Assault 29 | . . . . . . . . . 1 . . . . . . . . . . . 2 3 2 17 4 . Garrison 5 | . . . . . . . . . 1 . . . . . . . . . . . . 3 . 1 . . Intercept . | . . . . . . . . . . . . . . . . . . . . . . . . . . . Searches Triggered 1 | . . . . 1 . . . . . . . . . . . . . . . . . . . . . . Construction Impeded 4 | . . . . . . . . . . . . . . 1 1 . . . . . . 2 . . . . Haulers Reinforced 1 | . . . . . . . . . . . . . . . . . . . . . 1 . . . . . Active Scanning Responses . | . . . . . . . . . . . . . . . . . . . . . . . . . . . Cargo Convoy Interrupts 1 | . . . . . . . . . 1 . . . . . . . . . . . . . . . . . Stealth | -11 -10 -10 -8 -6 -6 -6 -6 -5 -5 -5 -5 -5 -4 -4 -4 -4 -4 -4 -3 -3 -3 -2 -2 -1 -1 -1 --------- Run | Yrd Mat Sub Rec Fac Low Low Zio Pro Fac Upp Upp Zhi Pro Fac Ext Cet Arc Hub Res Qua Sec Res Tes Acc Com Ac0 Distress Signals 20 | . 2 . . . . . . . . . . . . 1 . 2 . 1 1 . 4 3 2 3 1 . Communications Jammed 60 | . . . . . . . . . . . . . . 17 . . . 1 5 . 26 2 9 . . . Distress Signals 57 | . . . . . . . . . . . . . . 17 . . . 1 3 . 26 2 8 . . . Times Spotted 638 | . 22 15 3 23 8 4 . 18 4 20 1 . 2 20 26 14 25 17 15 17 63 65 46 133 19 58 Peak Tracking Total 15 | . 3 6 1 4 4 3 . 4 1 13 1 . 2 3 5 5 1 13 6 4 6 9 7 15 6 4 Tactical Retreats 23 | . 3 1 . . 1 . . 4 . 1 . . . 1 . . . 1 1 . 1 3 5 1 . . Traps | -11 -10 -10 -8 -6 -6 -6 -6 -5 -5 -5 -5 -5 -4 -4 -4 -4 -4 -4 -3 -3 -3 -2 -2 -1 -1 -1 ------- Run | Yrd Mat Sub Rec Fac Low Low Zio Pro Fac Upp Upp Zhi Pro Fac Ext Cet Arc Hub Res Qua Sec Res Tes Acc Com Ac0 Traps Triggered 47 | . 1 . . 1 . . . . . . . . . 4 4 . . 3 . 2 3 . . . 29 . Indirectly . | . . . . . . . . . . . . . . . . . . . . . . . . . . . Trap Hack Attempts 39 | . . . . 39 . . . . . . . . . . . . . . . . . . . . . . Triggered . | . . . . . . . . . . . . . . . . . . . . . . . . . . . Disarmed . | . . . . . . . . . . . . . . . . . . . . . . . . . . . Reprogrammed 5 | . . . . 5 . . . . . . . . . . . . . . . . . . . . . . Reused 3 | . . . . . 3 . . . . . . . . . . . . . . . . . . . . . Traps Extracted . | . . . . . . . . . . . . . . . . . . . . . . . . . . . Installed 3 | . . . . . 3 . . . . . . . . . . . . . . . . . . . . . Triggered 5 | . . . . . 3 . . . 1 . . . 1 . . . . . . . . . . . . . Most Traps Carried 2 | . . . . . 2 . . . . . . . . . . . . . . . . . . . . . Machines | -11 -10 -10 -8 -6 -6 -6 -6 -5 -5 -5 -5 -5 -4 -4 -4 -4 -4 -4 -3 -3 -3 -2 -2 -1 -1 -1 ---------- Run | Yrd Mat Sub Rec Fac Low Low Zio Pro Fac Upp Upp Zhi Pro Fac Ext Cet Arc Hub Res Qua Sec Res Tes Acc Com Ac0 Machines Disabled 94 | . . 1 1 17 . . . 2 2 2 . . . . 2 5 4 4 2 5 20 3 12 4 5 3 Max in Single Turn 7 | . . 1 1 7 . . . 1 2 1 . . . . 1 3 1 2 1 1 2 1 3 1 2 1 Garrison Access 9 | . . . . . . . . . 2 . . . . 1 . . . . 2 1 . . 1 2 . . Network Hub 3 | . . . . . . . . . . . . . . . . . . 3 . . . . . . . . Energy Cycler 1 | . . . . . . . . . . . . . . . . . . . . . . . . 1 . . Machines Repaired 4 | . . . . 1 . . . . 1 . . . . . 1 . . . 1 . . . . . . . Machines Dismantled . | . . . . . . . . . . . . . . . . . . . . . . . . . . . Machines Sabotaged 3 | . . . . . . . . . . . . . . . . . . 3 . . . . . . . . Overloaded Fab Kills 2 | . . . . 2 . . . . . . . . . . . . . . . . . . . . . . Hacking | -11 -10 -10 -8 -6 -6 -6 -6 -5 -5 -5 -5 -5 -4 -4 -4 -4 -4 -4 -3 -3 -3 -2 -2 -1 -1 -1 --------- Run | Yrd Mat Sub Rec Fac Low Low Zio Pro Fac Upp Upp Zhi Pro Fac Ext Cet Arc Hub Res Qua Sec Res Tes Acc Com Ac0 Machines Accessed 113 | . 8 1 12 5 1 1 . . 5 2 1 5 . 5 15 . . 5 8 12 11 6 7 2 1 . Terminals 68 | . 7 . 6 1 . . . . 1 1 1 . . 2 13 . . 5 4 8 9 3 6 1 . . Fabricators 9 | . . . . 3 . . . . 1 . . . . 2 . . . . 2 . . 1 . . . . Repair Stations 5 | . 1 . . . . . . . . . . . . . 1 . . . . 1 . 1 . . 1 . Recycling Units 9 | . . . 6 1 . . . . 1 . . . . . 1 . . . . . . . . . . . Scanalyzers 5 | . . . . . . . . . 1 . . . . . . . . . . 2 2 . . . . . Garrison Access 8 | . . . . . . . . . 1 . . . . 1 . . . . 2 1 . 1 1 1 . . Total Hacks 369 | . 25 1 40 13 1 1 . . 15 10 1 18 . 13 40 . . 20 31 43 25 36 28 6 2 . Successful 202 | . 9 1 22 8 1 1 . . 9 10 1 18 . 6 25 . . 14 19 18 14 11 13 2 . . Failed 166 | . 16 . 17 5 . . . . 6 . . . . 7 15 . . 6 12 25 11 25 15 4 2 . Catastrophic 30 | . 1 . 4 . . . . . . . . . . 3 . . . . 2 8 1 6 3 2 . . Database Lockouts 1 | . . . 1 . . . . . . . . . . . . . . . . . . . . . . . Manual 159 | . 15 . 26 6 . . . . 3 . . . . 4 23 . . 16 19 11 5 23 5 3 . . Terminals 246 | . 23 . 25 1 . . . . 3 9 1 . . 7 35 . . 20 23 31 20 18 27 3 . . Fabricators 30 | . . . . 10 . . . . 2 . . . . 4 . . . . 5 . . 9 . . . . Repair Stations 13 | . 2 . . . . . . . . . . . . . 3 . . . . 2 . 4 . . 2 . Recycling Units 21 | . . . 15 2 . . . . 2 . . . . . 2 . . . . . . . . . . . Scanalyzers 15 | . . . . . . . . . 4 . . . . . . . . . . 6 5 . . . . . Garrison Access 22 | . . . . . . . . . 4 . . . . 2 . . . . 3 4 . 5 1 3 . . Terminal Hacks 114 | . 5 1 10 . 1 1 . . . 10 1 18 . 2 19 . . 4 11 8 11 2 10 . . . Record 16 | . . . . . . . . . . 9 1 6 . . . . . . . . . . . . . . Part Schematic 12 | . . . 4 . . . . . . . . 4 . . 2 . . 1 1 . . . . . . . Robot Schematic 1 | . . . 1 . . . . . . . . . . . . . . . . . . . . . . . Robot Analysis 6 | . . . 1 . . . . . . . . 4 . . 1 . . . . . . . . . . . Prototype ID Bank 5 | . 1 . . . . . . . . . . 4 . . . . . . . . . . . . . . Open Door 17 | . . . . . 1 1 . . . 1 . . . . 9 . . . . . 4 . 1 . . . Level Access Points 2 | . . . . . . . . . . . . . . . . . . 1 . . . . 1 . . . Branch Access Points 4 | . 1 . . . . . . . . . . . . 1 . . . . 1 . . 1 . . . . Emergency Access Points 3 | . . . . . . . . . . . . . . . . . . . 1 2 . . . . . . Machine Index 1 | . . . . . . . . . . . . . . . . . . . 1 . . . . . . . Terminal Index 1 | . . . 1 . . . . . . . . . . . . . . . . . . . . . . . Garrison Index 1 | . . . . . . . . . . . . . . . . . . . . 1 . . . . . . Alert Level 9 | . . . 1 . . . . . . . . . . 1 3 . . . 1 2 1 . . . . . Unreport Threat 10 | . . . 1 . . . . . . . . . . . 2 . . . 1 . 2 . 4 . . . Locate Traps 9 | . 2 . . . . . . . . . . . . . 1 . . . 1 1 2 . 2 . . . Maintenance Status 1 | . . . . . . . . . . . . . . . . . . . 1 . . . . . . . Recall Investigation 1 | . . . . . . . . . . . . . . . . . . . 1 . . . . . . . Recall Extermination 1 | . . . . . . . . . . . . . . . . . . . 1 . . . . . . . Recall Reinforcements 2 | . . . . . . . . . . . . . . . 1 . . . . 1 . . . . . . Recall Assault 1 | . . . . . . . . . . . . . . . . . . . . . . 1 . . . . Hauler Manifests 2 | . . . 1 . . . . . . . . . . . . . . . 1 . . . . . . . Zone Layout 8 | . 1 . . . . . . . . . . . . . . . . 2 . 1 2 . 2 . . . Derelict Proto ID Bank 1 | . . 1 . . . . . . . . . . . . . . . . . . . . . . . . Fabricator Hacks 12 | . . . . 5 . . . . 2 . . . . 2 . . . . 2 . . 1 . . . . Load Schematic 5 | . . . . 2 . . . . 1 . . . . 1 . . . . 1 . . . . . . . Build 7 | . . . . 3 . . . . 1 . . . . 1 . . . . 1 . . 1 . . . . Repair Station Hacks 6 | . 1 . . . . . . . . . . . . . 1 . . . . 2 . 2 . . . . Scan Component 4 | . 1 . . . . . . . . . . . . . 1 . . . . 1 . 1 . . . . Repair 2 | . . . . . . . . . . . . . . . . . . . . 1 . 1 . . . . Recycling Unit Hacks 6 | . . . 2 1 . . . . 1 . . . . . 2 . . . . . . . . . . . Process 1 | . . . . . . . . . . . . . . . 1 . . . . . . . . . . . Retrieve Matter 1 | . . . . . . . . . . . . . . . 1 . . . . . . . . . . . Retrieve Components 4 | . . . 2 1 . . . . 1 . . . . . . . . . . . . . . . . . Scanalyzer 11 | . . . . . . . . . 4 . . . . . . . . . . 5 2 . . . . . Insert Component 9 | . . . . . . . . . 2 . . . . . . . . . . 5 2 . . . . . Analyze 2 | . . . . . . . . . 2 . . . . . . . . . . . . . . . . . Garrison Access Hacks 7 | . . . . . . . . . 1 . . . . 1 . . . . 2 1 . . 1 1 . . Seal Access 7 | . . . . . . . . . 1 . . . . 1 . . . . 2 1 . . 1 1 . . Unauthorized Hacks 46 | . 3 . 10 2 . . . . 1 . . . . 1 3 . . 10 4 2 1 6 2 1 . . Terminals 34 | . 3 . 4 . . . . . 1 . . . . 1 3 . . 10 4 2 1 2 2 1 . . Track 5 | . . . . . . . . . . . . . . . . . . 4 . . . . 1 . . . Assimilate 4 | . 1 . . . . . . . . . . . . . . . . . 1 1 . . . 1 . . Botnet 19 | . 2 . 3 . . . . . 1 . . . . 1 3 . . 2 2 1 1 2 1 . . . Disrupt 1 | . . . . . . . . . . . . . . . . . . 1 . . . . . . . . Operators 2 | . . . 1 . . . . . . . . . . . . . . . 1 . . . . . . . Sabotage 3 | . . . . . . . . . . . . . . . . . . 3 . . . . . . . . Fabricators 6 | . . . . 2 . . . . . . . . . . . . . . . . . 4 . . . . Report 1 | . . . . . . . . . . . . . . . . . . . . . . 1 . . . . Prioritize 2 | . . . . 1 . . . . . . . . . . . . . . . . . 1 . . . . Liberate 1 | . . . . . . . . . . . . . . . . . . . . . . 1 . . . . Haulers 1 | . . . . . . . . . . . . . . . . . . . . . . 1 . . . . Overload 1 | . . . . 1 . . . . . . . . . . . . . . . . . . . . . . Repair Stations . | . . . . . . . . . . . . . . . . . . . . . . . . . . . Recycling Units 6 | . . . 6 . . . . . . . . . . . . . . . . . . . . . . . Tunnel 6 | . . . 6 . . . . . . . . . . . . . . . . . . . . . . . Scanalyzers . | . . . . . . . . . . . . . . . . . . . . . . . . . . . Garrison Access . | . . . . . . . . . . . . . . . . . . . . . . . . . . . Data Cores Recovered 4 | . . . . . . . . . . . . . . 1 1 . . . 1 . . . . 1 . . Used 1 | . . . . . . . . . . . . . . . . . . . . . . . . 1 . . Hacking Detections 68 | . 8 . 7 2 . . . . 5 1 . . . 5 5 . . 4 5 10 5 5 4 1 1 . Full Trace Events 10 | . 1 . 4 . . . . . 1 1 . . . 1 . . . . 1 . . 1 . . . . Feedback Events . | . . . . . . . . . . . . . . . . . . . . . . . . . . . Feedback Blocked . | . . . . . . . . . . . . . . . . . . . . . . . . . . . Robot Schematics Acquired 7 | . . . 1 . . . 3 . . . . . . . . . . . . 1 1 . 1 . . . Robots Built 7 | . . . . 7 . . . . . . . . . . . . . . . . . . . . . . Authchips 2 | . . . . 2 . . . . . . . . . . . . . . . . . . . . . . Time 232 | . . . . 232 . . . . . . . . . . . . . . . . . . . . . . Total Robot Build Rating 20 | . . . . 20 . . . . . . . . . . . . . . . . . . . . . . Part Schematics Acquired 46 | . . . 4 . . . 15 . 2 . . 4 . . 2 . . 1 1 3 9 . 5 . . . Parts Built 4 | . . . . . . . . . 1 . . . . 1 . . . . 1 . . 1 . . . . Authchips . | . . . . . . . . . . . . . . . . . . . . . . . . . . . Time 411 | . . . . . . . . . 53 . . . . 62 . . . . 74 . . 222 . . . . Total Part Build Rating 31 | . . . . . . . . . 6 . . . . 7 . . . . 9 . . 9 . . . . Parts Repaired 2 | . . . . . . . . . . . . . . . . . . . . 1 . 1 . . . . Time 110 | . . . . . . . . . . . . . . . . . . . . 56 . 54 . . . . Parts Recycled . | . . . . . . . . . . . . . . . . . . . . . . . . . . . Recycled Matter 78 | . . . . . . . . . . . . . . . 78 . . . . . . . . . . . Retrieved Matter 78 | . . . . . . . . . . . . . . . 78 . . . . . . . . . . . Retrieved Components 15 | . . . 3 10 . . . . 2 . . . . . . . . . . . . . . . . . Parts Scanalyzed 2 | . . . . . . . . . 2 . . . . . . . . . . . . . . . . . Part Schematics Acquired 2 | . . . . . . . . . 2 . . . . . . . . . . . . . . . . . Parts Damaged . | . . . . . . . . . . . . . . . . . . . . . . . . . . . Bothacking | -11 -10 -10 -8 -6 -6 -6 -6 -5 -5 -5 -5 -5 -4 -4 -4 -4 -4 -4 -3 -3 -3 -2 -2 -1 -1 -1 ------------ Run | Yrd Mat Sub Rec Fac Low Low Zio Pro Fac Upp Upp Zhi Pro Fac Ext Cet Arc Hub Res Qua Sec Res Tes Acc Com Ac0 Used RIF Installer . | . . . . . . . . . . . . . . . . . . . . . . . . . . . Robots Hacked 2 | . . . . 2 . . . . . . . . . . . . . . . . . . . . . . Non-combat 2 | . . . . 2 . . . . . . . . . . . . . . . . . . . . . . Combat . | . . . . . . . . . . . . . . . . . . . . . . . . . . . Robot Hacks Applied 4 | . . . . 4 . . . . . . . . . . . . . . . . . . . . . . no_distress 2 | . . . . 2 . . . . . . . . . . . . . . . . . . . . . . find_fabricator 1 | . . . . 1 . . . . . . . . . . . . . . . . . . . . . . find_station 1 | . . . . 1 . . . . . . . . . . . . . . . . . . . . . . Relay Couplers Released 6 | . . . . . . . . . 3 . . . . . . . . . . . . . . 3 . . Machine Destruction 6 | . . . . . . . . . 3 . . . . . . . . . . . . . . 3 . . Fabnet Peak Effective % . | . . . . . . . . . . . . . . . . . . . . . . . . . . . Robots Rewired 20 | . . . 9 . . . . 2 . . . . . . 7 . 1 . . . . . . 1 . . Allies Hacked . | . . . . . . . . . . . . . . . . . . . . . . . . . . . Hacks Repelled . | . . . . . . . . . . . . . . . . . . . . . . . . . . . Allies | -11 -10 -10 -8 -6 -6 -6 -6 -5 -5 -5 -5 -5 -4 -4 -4 -4 -4 -4 -3 -3 -3 -2 -2 -1 -1 -1 -------- Run | Yrd Mat Sub Rec Fac Low Low Zio Pro Fac Upp Upp Zhi Pro Fac Ext Cet Arc Hub Res Qua Sec Res Tes Acc Com Ac0 Total Allies 63 | . 1 . 9 7 . . 4 2 . . . . . 3 23 . 1 . 1 . . 5 . 4 3 . Largest Group 11 | . 1 1 9 9 3 . 4 4 . . . . . 3 11 3 1 . 1 . . 3 . 4 3 . Highest-Rated Group 427 | . 10 10 182 182 86 . 96 96 . . . . . 138 397 234 40 . 10 . . 194 . 427 376 . Highest-Rated Ally 159 | . 10 10 34 34 30 . 31 49 . . . . . 46 159 159 40 . 10 . . 99 . 135 132 . Total Orders 55 | . . . 4 . 2 . . . 2 8 2 . 3 2 2 . . 2 3 6 9 6 4 . . . STAY 4 | . . . . . 1 . . . . 3 . . . . . . . . . . . . . . . . FOLLOW 3 | . . . . . 1 . . . . 2 . . . . . . . . . . . . . . . . DROP 1 | . . . 1 . . . . . . . . . . . . . . . . . . . . . . . COLLECT 3 | . . . 3 . . . . . . . . . . . . . . . . . . . . . . . RETURN 44 | . . . . . . . . . 2 3 2 . 3 2 2 . . 2 3 6 9 6 4 . . . Ally Attacks 331 | . . . 1 25 6 . . 50 . . . . . 12 155 15 . . . . . 27 . 38 2 . Total Damage 10695 | . . . 27 407 112 . . 1003 . . . . . 332 4744 583 . . . . . 1651 . 1814 22 . Kills 47 | . . . 1 2 . . . 8 . . . . . 1 14 2 . . . . . 12 . 7 . . Allies Corrupted 3 | . . . . . 2 . . 1 . . . . . . . . . . . . . . . . . . Allies Melted . | . . . . . . . . . . . . . . . . . . . . . . . . . . . Intel | -11 -10 -10 -8 -6 -6 -6 -6 -5 -5 -5 -5 -5 -4 -4 -4 -4 -4 -4 -3 -3 -3 -2 -2 -1 -1 -1 ------- Run | Yrd Mat Sub Rec Fac Low Low Zio Pro Fac Upp Upp Zhi Pro Fac Ext Cet Arc Hub Res Qua Sec Res Tes Acc Com Ac0 Robot Analysis Total 6 | . . . 1 . . . . . . . . 4 . . 1 . . . . . . . . . . . Derelict Logs Recovered 14 | . . 2 . . 2 2 2 1 . 2 2 . 1 . . . . . . . . . . . . . Drone Launches 117 | . . . . . . . . . 6 9 6 . 9 6 6 . . 6 9 18 22 12 8 . . . Drone Recoveries 116 | . . . . . . . . . 6 9 6 . 9 6 6 . . 6 9 18 21 12 8 . . . Exploration | -11 -10 -10 -8 -6 -6 -6 -6 -5 -5 -5 -5 -5 -4 -4 -4 -4 -4 -4 -3 -3 -3 -2 -2 -1 -1 -1 ------------- Run | Yrd Mat Sub Rec Fac Low Low Zio Pro Fac Upp Upp Zhi Pro Fac Ext Cet Arc Hub Res Qua Sec Res Tes Acc Com Ac0 Turns Passed 36315 | 196 1578 3082 2455 2235 868 481 1076 781 1233 1653 730 533 899 1492 1430 343 1141 610 1177 1301 2431 1456 1287 774 3926 1147 Spaces Moved 21917 | 114 698 1452 978 1445 1210 688 861 510 713 755 343 269 348 945 998 181 422 406 736 1103 1561 1174 943 510 2099 455 Core 39 | 39 . . . . . . . . . . . . . . . . . . . . . . . . . . Treads 7413 | 75 698 1452 978 521 . . . 5 27 . . . . . . . . . 640 1103 274 . . . 1439 201 Legs 7598 | . . . . . 629 638 . 327 686 290 . 147 348 220 . . 355 406 31 . . 1154 943 510 660 254 Wheels 1770 | . . . . . . . . . . . . . . 524 998 181 67 . . . . . . . . . Hover 1902 | . . . . 329 . . . . . . . . . 201 . . . . 65 . 1287 20 . . . . Flight 3195 | . . . . 595 581 50 861 178 . 465 343 122 . . . . . . . . . . . . . . Fastest Speed 50 | 50 160 160 160 63 63 63 63 63 98 98 166 166 178 103 103 103 96 96 63 63 63 79 79 79 79 100 Average Speed 117 | 122 160 190 211 122 63 63 63 118 115 139 166 171 178 120 103 103 97 96 90 63 96 79 79 79 160 129 Slowest Speed 304 | 160 160 240 240 240 63 63 63 172 163 166 166 178 178 178 103 103 103 96 159 63 102 102 79 118 304 237 Overloaded Moves . | . . . . . . . . . . . . . . . . . . . . . . . . . . . Propulsion Burnouts . | . . . . . . . . . . . . . . . . . . . . . . . . . . . Robots Hopped . | . . . . . . . . . . . . . . . . . . . . . . . . . . . Cave-ins Triggered . | . . . . . . . . . . . . . . . . . . . . . . . . . . . Teleports 1 | . . . . . . . . . . . . . . . . . . . . . . . . . 1 . Exploration Rate (%) 56 | 4 99 76 99 29 91 74 81 50 19 75 53 60 50 24 86 56 93 32 17 88 62 33 76 17 52 32 Regions Visited 26 Branch Regions 19 Pre-discovered Areas 12 | . . . 6 . . . 2 . . 1 . 3 . . . . . . . . . . . . . . Known Exits Taken 21 | . . . . 1 1 1 1 1 1 1 1 1 1 1 1 1 1 1 1 1 1 1 1 1 . . Unknown Exits Taken 5 | 1 1 1 1 . . . . . . . . . . . . . . . . . . . . . 1 . Scrap Searched 27 | . . 3 . . 7 3 5 1 . 4 1 . 3 . . . . . . . . . . . . . Spaces Dug 162 | . 1 1 . 11 1 1 . . 5 33 3 . 8 7 4 . 7 8 7 7 4 8 4 34 8 . Terrain Destroyed 1399 | . 7 15 10 37 1 2 . 11 9 72 4 . 15 37 36 42 15 19 38 24 51 81 213 289 159 212 Melee 34 | . . . . 2 1 1 . . 4 4 . . . 3 1 . . 2 4 1 3 3 2 . 3 . Projectile 368 | . 1 6 10 7 . 1 . 11 5 40 4 . 15 34 21 . 15 17 15 7 21 53 28 44 5 8 AOE 965 | . 6 9 . 28 . . . . . 28 . . . . 14 42 . . 19 16 27 22 183 245 149 177 Terrain Rammed . | . . . . . . . . . . . . . . . . . . . . . . . . . . . Walls Destroyed . | . . . . . . . . . . . . . . . . . . . . . . . . . . . Machines Disabled . | . . . . . . . . . . . . . . . . . . . . . . . . . . . Actions | -11 -10 -10 -8 -6 -6 -6 -6 -5 -5 -5 -5 -5 -4 -4 -4 -4 -4 -4 -3 -3 -3 -2 -2 -1 -1 -1 --------- Run | Yrd Mat Sub Rec Fac Low Low Zio Pro Fac Upp Upp Zhi Pro Fac Ext Cet Arc Hub Res Qua Sec Res Tes Acc Com Ac0 Total 30115 | 145 1054 1675 1324 1832 1284 719 1394 634 1079 1254 494 313 606 1203 1265 274 1088 572 1142 1620 2239 1516 1308 777 2503 801 Wait 5001 | 1 264 111 243 177 21 9 496 68 322 417 144 4 231 132 108 13 584 110 292 392 349 150 121 62 45 135 Move 21893 | 113 697 1452 977 1444 1209 687 860 509 712 754 342 268 347 944 997 180 421 405 735 1102 1560 1174 942 509 2098 455 Hop . | . . . . . . . . . . . . . . . . . . . . . . . . . . . Pick Up 248 | 10 14 8 3 24 6 3 14 2 3 4 . 1 1 11 7 9 8 2 10 12 19 15 14 8 33 7 Fast Attach 133 | 4 2 2 1 6 1 . 6 . . 1 . 5 . 2 1 1 4 5 4 9 21 8 20 3 17 10 Attach 136 | 4 5 5 . 9 4 . 3 . 2 1 . . . 3 1 . 2 . 5 5 13 6 9 10 25 24 Detach 100 | . 2 . . 5 5 . 2 . 1 1 . 1 . 1 . . 1 . 2 5 9 2 11 13 29 10 Swap 486 | . 11 14 6 9 6 5 2 9 19 17 2 6 6 38 40 13 8 15 26 32 68 44 41 25 11 13 Drop 262 | 1 8 7 5 22 6 4 10 2 1 3 . 4 1 13 5 5 9 4 10 19 28 7 38 7 39 4 Fire 1301 | 12 51 76 23 68 17 10 . 40 8 48 6 21 20 52 44 37 39 23 40 26 153 97 65 117 69 139 Melee 281 | . . . . 8 6 1 1 . 9 8 . 2 . 6 23 15 9 6 13 16 19 10 47 1 77 4 Ram . | . . . . . . . . . . . . . . . . . . . . . . . . . . . Kick 8 | . . . . . . . . . . . . . . . . . . 1 . . . 3 . 4 . . Crush 2 | . . . 2 . . . . . . . . . . . . . . . . . . . . . . . Escape Stasis 93 | . . . . 18 . . . . . . . . . . 4 . . . . . . . . 13 58 . Rewire 104 | . . . 59 . . . . 4 . . . 1 . . 29 1 3 . . . . . . 5 2 . Trap 42 | . . . . 39 3 . . . . . . . . . . . . . . . . . . . . . Miscellaneous 25 | . . . 5 3 . . . . 2 . . . . 1 6 . . 1 5 2 . . . . . . Route ------- -11/Scrapyard -10/Materials (discovered 5 exits: [*Mat x3] / *Min / *Sub) -10/Subcaves (discovered 2 exits: [*Mat] / *Rec) -8/Recycling -6/Factory (discovered 2 exits: *Fac / *Low) -6/Lower Caves -6/Lower Caves (discovered 2 exits: *Fac / *Zio) -6/Zion -5/Proximity Caves -5/Factory (discovered 5 exits: *Fac x3 / *Upp x2) -5/Upper Caves -5/Upper Caves (discovered 2 exits: Fac / *Zhi) -5/Zhirov -4/Proximity Caves -4/Factory (discovered 6 exits: Res x2 / Upp x2 / *Ext x2) -4/Extension (discovered 2 exits: *Res / *Cet) -4/Cetus (discovered 2 exits: *Res / *Arc) -4/Archives (discovered 3 exits: *Res / *Hub x2) -4/Hub_04(d) (discovered 4 exits: *Res x4) -3/Research (discovered 3 exits: Arm / *Qua x2) -3/Quarantine (discovered 2 exits: *Res / *Sec) -3/Section 7 -2/Research (discovered 2 exits: *Tes x2) -2/Testing -1/Access (discovered 2 exits: Sur / *Com) -1/Command (discovered 3 exits: *Sur x2 / [*Ac0]) -1/Access_0 History --------- Turn | Location | Event 18 | -11/Scrapyard | Discovered new exit (range 16) 197 | -11/Scrapyard | Entered Materials 308 | -10/Materials | Build established: Mutant 861 | -10/Materials | Discovered new exit (range 16) 1081 | -10/Materials | Discovered new exit (range 16) 1177 | -10/Materials | Identified exit to Mines 1198 | -10/Materials | Discovered new exit (range 11) 1757 | -10/Materials | Discovered new exit (range 3) 1775 | -10/Materials | Entered Subcaves 1775 | -10/Subcaves | Accompanied by 1 ally 1831 | -10/Subcaves | Discovered new exit (range 9) 2459 | -10/Subcaves | A swath of the cavern ceiling suddenly collapsed 2508 | -10/Subcaves | Build established: Scavenger-Mutant 2764 | -10/Subcaves | Shifting Twisted Machinery released Barrage Gun 2766 | -10/Subcaves | Shifting Twisted Machinery released Mak. System Shield 2832 | -10/Subcaves | Learned 2 Materials zone layouts 2871 | -10/Subcaves | Shifting Twisted Machinery released Sub. Beam Cannon 2873 | -10/Subcaves | Shifting Twisted Machinery released Sub. Machine Gun 3029 | -10/Subcaves | Disturbed a concealed Subdweller 3045 | -10/Subcaves | Core integrity fell below 50% 3093 | -10/Subcaves | Lost 3 parts (1n1u1w) 3185 | -10/Subcaves | Build established: Mutant 3189 | -10/Subcaves | Visited 4L-MR0's lab 3208 | -10/Subcaves | Found Arachnoskeleton 3262 | -10/Subcaves | Learned 2 Materials zone layouts 3418 | -10/Subcaves | Shifting Twisted Machinery released Riot Gun 3419 | -10/Subcaves | Shifting Twisted Machinery released Sub. Beam Cannon 4782 | -10/Subcaves | Discovered new exit (range 13) 4857 | -10/Subcaves | Entered Recycling 4861 | -8/Recycling | Found Scrap Engine 5246 | -8/Recycling | Discovered new exit (range 15) 6626 | -8/Recycling | Build established: Commander-Mutant 7312 | -8/Recycling | Entered Factory 7312 | -6/Factory | Accompanied by 9 allies 7312 | -6/Factory | Evolved 8 slots: Propulsion x2, Utility x4, Weapon x2 7522 | -6/Factory | Lost 4 allies 7662 | -6/Factory | Search patrols dispatched 7803 | -6/Factory | Discovered new exit (range 7) 8166 | -6/Factory | Lost 3 allies 8300 | -6/Factory | System corruption reached 10% 8350 | -6/Factory | Fabricated Y-45 Defender (x2) 8400 | -6/Factory | Fabricated Y-45 Defender (x2) 8877 | -6/Factory | Lost 3 allies 9052 | -6/Factory | P-60 Hacker assimilated allied Savior 3b 9129 | -6/Factory | Destroyed 7 combat bots 9292 | -6/Factory | Fabricated L-41 Fighter (x3) 9308 | -6/Factory | Discovered new exit (range 16) 9343 | -6/Factory | Identified exit to Factory 9363 | -6/Factory | Build established: Construct 9513 | -6/Factory | Identified exit to Lower Caves 9547 | -6/Factory | Entered Lower Caves 9547 | -6/Lower Caves | Accompanied by 3 allies 10157 | -6/Lower Caves | Discovered new exit (range 12) 10165 | -6/Lower Caves | Learned Factory emergency access door positions 10390 | -6/Lower Caves | Identified exit to Lower Caves 10415 | -6/Lower Caves | Entered another Lower Caves area 10493 | -6/Lower Caves | Found Prototype Device 10501 | -6/Lower Caves | Discovered exit to Factory (range 13) 10662 | -6/Lower Caves | Attracted the attention of an 0b10 checkpoint 10761 | -6/Lower Caves | Learned location of 1 exit from Factory 10770 | -6/Lower Caves | Learned 4 Factory zone layouts 10871 | -6/Lower Caves | Discovered new exit (range 11) 10878 | -6/Lower Caves | Identified exit to Zion 10896 | -6/Lower Caves | Entered Zion 10932 | -6/Zion | System corruption cleaned by Quarantine Array 10951 | -6/Zion | Gained Derelict followers 10958 | -6/Zion | Discovered new exit (range 14) 11020 | -6/Zion | Learned location of Quarantine (-3) 11067 | -6/Zion | Identified Heart of Steel 11092 | -6/Zion | Found Prototype Device 11092 | -6/Zion | Identified Mobile Refinery Mk. CCLXVII 11568 | -6/Zion | Learned location of 1 exit from Factory 11708 | -6/Zion | Found CR-A16's Pointy Stick 11738 | -6/Zion | Learned location of 1 exit from Proximity Caves 11869 | -6/Zion | Identified exit to Proximity Caves 11972 | -6/Zion | Entered Proximity Caves 11972 | -5/Proximity Caves | Accompanied by 4 allies 12042 | -5/Proximity Caves | Attracted the attention of an 0b10 outpost 12119 | -5/Proximity Caves | Lost 4 allies 12523 | -5/Proximity Caves | Learned 8 Factory zone layouts 12637 | -5/Proximity Caves | Attracted the attention of an 0b10 checkpoint 12753 | -5/Proximity Caves | Entered Factory 12753 | -5/Factory | Evolved 2 slots: Propulsion x1, Utility x1 12754 | -5/Factory | Identified exit to Upper Caves 12755 | -5/Factory | Identified exit to Factory 13054 | -5/Factory | Build established: Hacker-Construct 13117 | -5/Factory | Garrison activated, responded to threat 13120 | -5/Factory | Fabricated Mapping Drone Bay? 13474 | -5/Factory | Cargo convoy interrupted 13838 | -5/Factory | Discovered exit to Upper Caves (range 9) 13986 | -5/Factory | Entered Upper Caves 14278 | -5/Upper Caves | Build established: Construct 14384 | -5/Upper Caves | Learned 4 Factory zone layouts 14457 | -5/Upper Caves | Learned Research terminal intel 14457 | -5/Upper Caves | Learned Armory stockpile data 14457 | -5/Upper Caves | Learned Research stockpile data 14457 | -5/Upper Caves | Learned 6 Lower Caves zone layouts 14457 | -5/Upper Caves | Learned 8 Factory zone layouts 14458 | -5/Upper Caves | Attracted the attention of an 0b10 base 14540 | -5/Upper Caves | Destroyed 9 combat bots 14658 | -5/Upper Caves | Learned Factory emergency access door positions 14679 | -5/Upper Caves | Attracted the attention of an 0b10 checkpoint 15520 | -5/Upper Caves | Discovered new exit (range 16) 15637 | -5/Upper Caves | Identified exit to Upper Caves 15639 | -5/Upper Caves | Entered another Upper Caves area 15641 | -5/Upper Caves | Attracted the attention of an 0b10 checkpoint 15821 | -5/Upper Caves | Learned Factory emergency access door positions 16318 | -5/Upper Caves | Discovered new exit (range 13) 16336 | -5/Upper Caves | Identified exit to Zhirov 16369 | -5/Upper Caves | Entered Zhirov 16369 | -5/Zhirov | Discovered new exit (range 3) 16399 | -5/Zhirov | Met Zhirov 16431 | -5/Zhirov | Learned location of Testing (-2) 16431 | -5/Zhirov | Learned location of Command (-1) 16446 | -5/Zhirov | Zhirov requested help retrieving the SGEMP Prototype 16480 | -5/Zhirov | Found Alien Artifact 16480 | -5/Zhirov | Identified Integrated Dissipator 16480 | -5/Zhirov | Installed Integrated Dissipator, increased core heat dissipation (+20) 16639 | -5/Zhirov | Found Alien Artifact 16900 | -5/Zhirov | Identified exit to Proximity Caves 16902 | -5/Zhirov | Entered Proximity Caves 17559 | -4/Proximity Caves | Spotted B-86 Titan 17612 | -4/Proximity Caves | Discovered exit to Factory (range 13) 17623 | -4/Proximity Caves | Learned Research terminal intel 17801 | -4/Proximity Caves | Entered Factory 17801 | -4/Factory | Evolved 2 slots: Power x1, Utility x1 17802 | -4/Factory | Identified exit to Research 18112 | -4/Factory | Build established: Hacker-Construct 18321 | -4/Factory | Allied Derelicts emerged from ambush trap array 18441 | -4/Factory | Identified exit to Upper Caves 18441 | -4/Factory | Identified exit to Extension 18579 | -4/Factory | Spotted B-86 Titan 18862 | -4/Factory | Fabricated Exp. Optical Array? 19293 | -4/Factory | Entered Extension 19341 | -4/Extension | Rescued a captive Derelict 19360 | -4/Extension | Rescued a captive Derelict 19377 | -4/Extension | Rescued a captive Derelict 19393 | -4/Extension | Rescued a captive Derelict 19394 | -4/Extension | Rescued a captive Derelict 19594 | -4/Extension | Rescued a captive Derelict 19595 | -4/Extension | Rescued a captive Derelict 19690 | -4/Extension | Rescued a captive Derelict 19691 | -4/Extension | Rescued a captive Derelict 19810 | -4/Extension | Lost 6 allies 19849 | -4/Extension | Rescued a captive Derelict 20141 | -4/Extension | Spotted B-86 Titan 20159 | -4/Extension | Spotted B-86 Titan 20162 | -4/Extension | Destroyed B-86 Titan 20204 | -4/Extension | Destroyed B-86 Titan 20213 | -4/Extension | Lost 7 allies 20292 | -4/Extension | Rescued a captive Derelict 20450 | -4/Extension | Rescued a captive Derelict 20451 | -4/Extension | Rescued a captive Derelict 20477 | -4/Extension | Rescued a captive Derelict 20477 | -4/Extension | Rescued a captive Derelict 20592 | -4/Extension | Lost 3 allies 20628 | -4/Extension | Rescued A7 20674 | -4/Extension | Discovered exit to Research (range 10) 20675 | -4/Extension | Discovered new exit (range 6) 20680 | -4/Extension | Identified exit to Cetus 20723 | -4/Extension | Entered Cetus 20723 | -4/Cetus | Accompanied by 3 allies (A7) 20728 | -4/Cetus | Acquired a Cetus Manufacturing Module code from A7 20736 | -4/Cetus | Spotted Cetus Guard 20736 | -4/Cetus | Spotted Cetus Guard 20743 | -4/Cetus | Allies destroyed Cetus Guard 20743 | -4/Cetus | Spotted Cetus Guard 20745 | -4/Cetus | Spotted Cetus Guard 20746 | -4/Cetus | Destroyed Cetus Guard 20751 | -4/Cetus | Destroyed Cetus Guard 20753 | -4/Cetus | Destroyed Cetus Guard 20801 | -4/Cetus | Cetus Manufacturing Module disabled 20849 | -4/Cetus | Discovered new exit (range 16) 20866 | -4/Cetus | Spotted Cetus Guard 20866 | -4/Cetus | Spotted Cetus Guard 20868 | -4/Cetus | Spotted Cetus Guard 20873 | -4/Cetus | Allies destroyed Cetus Guard 20876 | -4/Cetus | Destroyed Cetus Guard 20877 | -4/Cetus | Destroyed Cetus Guard 20879 | -4/Cetus | Destroyed Cetus Guard 20886 | -4/Cetus | Discovered exit to Research (range 16) 20892 | -4/Cetus | Met Revision 17 20987 | -4/Cetus | Murdered A7 20987 | -4/Cetus | Destroyed A7 20994 | -4/Cetus | Found Prototype Protection 20995 | -4/Cetus | Identified Med. Regenerative Plating 21064 | -4/Cetus | Identified exit to Archives 21066 | -4/Cetus | Entered Archives 21205 | -4/Archives | Discovered exit to Research (range 14) 21284 | -4/Archives | Discovered new exit (range 16) 22105 | -4/Archives | Discovered new exit (range 16) 22191 | -4/Archives | Identified exit to Hub_04(d) 22207 | -4/Archives | Entered Hub_04(d) 22760 | -4/Hub_04(d) | Network Hub disabled 22763 | -4/Hub_04(d) | Spotted Lightning 22775 | -4/Hub_04(d) | Spotted Lightning 22778 | -4/Hub_04(d) | Spotted Lightning 22779 | -4/Hub_04(d) | Spotted Lightning 22786 | -4/Hub_04(d) | Network Hub disabled 22792 | -4/Hub_04(d) | Spotted Lightning 22804 | -4/Hub_04(d) | Network Hub disabled 22808 | -4/Hub_04(d) | Spotted Lightning 22813 | -4/Hub_04(d) | System corruption reached 10% 22817 | -4/Hub_04(d) | Entered Research 22817 | -3/Research | Evolved 2 slots: Utility x1, Weapon x1 22819 | -3/Research | Loaded intel: 26 terminal locations 22906 | -3/Research | Identified exit to Armory 22906 | -3/Research | Identified exit to Quarantine 23076 | -3/Research | Lost 3 parts (1u2w) 23211 | -3/Research | Spotted B-86 Titan 23228 | -3/Research | Revealed the true nature of CR-A16's Pointy Stick 23231 | -3/Research | Destroyed B-86 Titan 23909 | -3/Research | Fabricated Enh. Armored Heavy Treads (x1) 23994 | -3/Research | Entered Quarantine 24256 | -3/Quarantine | Found Alien Impact Weapon 24300 | -3/Quarantine | Identified Transdimensional Reconstructor 24300 | -3/Quarantine | Identified Core Stripper 24472 | -3/Quarantine | Found Alien Artifact 24625 | -3/Quarantine | Found Alien Energy Cannon 24777 | -3/Quarantine | Repaired Hvy. Shock Bomb Launcher 24799 | -3/Quarantine | Discovered new exit (range 11) 24805 | -3/Quarantine | Identified exit to Research 25052 | -3/Quarantine | Found Alien Artifact 25078 | -3/Quarantine | Identified Core Reset Matrix 25078 | -3/Quarantine | Identified Subatomic Replicator 25173 | -3/Quarantine | Spotted Fortress 25187 | -3/Quarantine | Destroyed Fortress 25199 | -3/Quarantine | Found Prototype Device 25199 | -3/Quarantine | Identified Exp. Force Field 25202 | -3/Quarantine | Found Prototype Device 25202 | -3/Quarantine | Identified Thermal Barrier 25204 | -3/Quarantine | Found Prototype Device 25204 | -3/Quarantine | Identified Exp. EM Disruption Field 25217 | -3/Quarantine | Identified Core Cannon 25242 | -3/Quarantine | Found Prototype Reactor 25242 | -3/Quarantine | Identified Vortex Chain Reactor 25291 | -3/Quarantine | Discovered new exit (range 6) 25294 | -3/Quarantine | Identified exit to Section 7 25295 | -3/Quarantine | Entered Section 7 25375 | -3/Section 7 | Found Alien Artifact 25394 | -3/Section 7 | Identified Integrated Reactor 25394 | -3/Section 7 | Installed Integrated Reactor, increased core energy generation (+10) 25399 | -3/Section 7 | Found Integrated Reactor 25399 | -3/Section 7 | Installed Integrated Reactor, increased core energy generation (+10) 25420 | -3/Section 7 | Spotted B-86 Titan 25427 | -3/Section 7 | Destroyed B-86 Titan 25752 | -3/Section 7 | Found Alien Artifact 25814 | -3/Section 7 | Identified Integrated Mediator 25814 | -3/Section 7 | Installed Integrated Mediator, increased core attachment efficiency 25956 | -3/Section 7 | Discovered exit to Research (range 12) 26461 | -3/Section 7 | Spotted Alpha 7 26468 | -3/Section 7 | Destroyed Alpha 7 26506 | -3/Section 7 | Found Prototype Device 26506 | -3/Section 7 | Identified Exp. ECM Suite 26518 | -3/Section 7 | Found Prototype Ballistic Gun 26522 | -3/Section 7 | Found Prototype Processor 26522 | -3/Section 7 | Identified Exp. Target Analyzer 26569 | -3/Section 7 | Spotted Alpha 7 26577 | -3/Section 7 | Destroyed Alpha 7 26590 | -3/Section 7 | Found Prototype Ballistic Gun 26603 | -3/Section 7 | Found Exp. Targeting Computer 26644 | -3/Section 7 | Identified Multirail (x2) 26656 | -3/Section 7 | Spotted B-99 Colossus 26663 | -3/Section 7 | Destroyed B-99 Colossus 26710 | -3/Section 7 | Found Integrated Reactor 26710 | -3/Section 7 | Installed Integrated Reactor, increased core energy generation (+10) 26713 | -3/Section 7 | Found Integrated Reactor 26713 | -3/Section 7 | Installed Integrated Reactor, increased core energy generation (+10) 26715 | -3/Section 7 | Found Integrated Reactor 26715 | -3/Section 7 | Installed Integrated Reactor, increased core energy generation (+10) 26763 | -3/Section 7 | Found Alien Artifact 26763 | -3/Section 7 | Identified LRC Insulator 26763 | -3/Section 7 | Installed LRC Insulator, gained EM resistance (25) 26769 | -3/Section 7 | Found Alien Artifact 26769 | -3/Section 7 | Identified LRC Matter Compressor 26769 | -3/Section 7 | Installed LRC Matter Compressor, increased matter storage capacity (+125) 26772 | -3/Section 7 | Found LRC Matter Compressor 26772 | -3/Section 7 | Installed LRC Matter Compressor, increased matter storage capacity (+125) 26799 | -3/Section 7 | Build established: Construct 26911 | -3/Section 7 | Spotted Executioner 26912 | -3/Section 7 | Spotted Executioner 26928 | -3/Section 7 | Destroyed Executioner 26942 | -3/Section 7 | Destroyed Executioner 26949 | -3/Section 7 | Found Prototype Processor 26949 | -3/Section 7 | Identified Exp. Core Analyzer 26955 | -3/Section 7 | Found Prototype Device 26956 | -3/Section 7 | Identified Adv. Kinecellerator 26968 | -3/Section 7 | Found Exp. Targeting Computer 26997 | -3/Section 7 | System corruption reached 10% 27172 | -3/Section 7 | Spotted Striker 27172 | -3/Section 7 | Spotted Striker 27295 | -3/Section 7 | First assault squad dispatched 27419 | -3/Section 7 | Found Exp. Target Analyzer 27653 | -3/Section 7 | Found Prototype Device 27662 | -3/Section 7 | Identified Exp. Thermal Shield 27726 | -3/Section 7 | Entered Research 27726 | -2/Research | Evolved 2 slots: Propulsion x1, Utility x1 27727 | -2/Research | Loaded intel: 21 terminal locations 27760 | -2/Research | Spotted B-90 Cyclops 27840 | -2/Research | Destroyed B-90 Cyclops 27961 | -2/Research | Fabricated Hdn. Centrium Leg (x1) 27976 | -2/Research | First assault squad dispatched 27999 | -2/Research | Spotted B-90 Cyclops 28001 | -2/Research | Destroyed B-90 Cyclops 28034 | -2/Research | Build established: Gunner 28445 | -2/Research | Repaired Exp. EM Disruption Field? 28722 | -2/Research | Garrison activated, responded to threat 28810 | -2/Research | Build established: Hacker-Gunner 28926 | -2/Research | Identified exit to Testing 29026 | -2/Research | Used Subatomic Replicator to replicate Heart of Steel 29031 | -2/Research | Heart of Steel transformed into Warbot 29034 | -2/Research | Heart of Steel transformed into Warbot 29100 | -2/Research | High security lockdown imminent 29180 | -2/Research | High security lockdown engaged 29182 | -2/Research | Entered Testing 29286 | -2/Testing | Identified exit to Access 29321 | -2/Testing | Found Prototype Device 29321 | -2/Testing | Identified Exp. Hardlight Generator 29432 | -2/Testing | First assault squad dispatched 29497 | -2/Testing | Spotted PY-3EG54LJAS2 29506 | -2/Testing | Destroyed PY-3EG54LJAS2 29514 | -2/Testing | Found Exp. Target Analyzer 29566 | -2/Testing | Build established: Construct 29716 | -2/Testing | Found Prototype Energy Cannon 29716 | -2/Testing | Identified Imp. Potential Cannon 29757 | -2/Testing | Scanned by Researcher 29771 | -2/Testing | Found Prototype Device 29771 | -2/Testing | Identified 2N-1CE's Frost Array 30045 | -2/Testing | Spotted Striker 30071 | -2/Testing | Destroyed Striker 30077 | -2/Testing | Spotted Striker 30088 | -2/Testing | Destroyed Striker 30120 | -2/Testing | Spotted Alpha 7 30266 | -2/Testing | Stole the SGEMP Prototype 30287 | -2/Testing | Found Quantum Capacitor 30311 | -2/Testing | Destroyed Alpha 7 30314 | -2/Testing | Found Exp. Targeting Computer 30462 | -2/Testing | Found Prototype Protection 30469 | -2/Testing | Entered Access 30469 | -1/Access | Evolved 2 slots: Utility x2 30470 | -1/Access | Loaded intel: 106 machine locations 30470 | -1/Access | Loaded intel: 67 trap records 30470 | -1/Access | Identified exit to Surface 30470 | -1/Access | Discovered exit to Surface (range 162) 30470 | -1/Access | Identified exit to Command 30470 | -1/Access | Discovered exit to Command (range 240) 30470 | -1/Access | Delivered the SGEMP Prototype to Zhirov 30470 | -1/Access | Zhirov transferred Access data 30472 | -1/Access | Identified SHELL Armor 30602 | -1/Access | Garrison activated, responded to threat 30627 | -1/Access | Spotted B-99 Colossus 30639 | -1/Access | Destroyed B-99 Colossus 30650 | -1/Access | Zhirov warped through subspace 30719 | -1/Access | First assault squad dispatched 30776 | -1/Access | High security lockdown imminent 30856 | -1/Access | High security lockdown engaged 30871 | -1/Access | Spotted B-99 Colossus 30881 | -1/Access | Destroyed 10 combat bots 30925 | -1/Access | Found Prototype Processor 30942 | -1/Access | Energy Cycler disabled 31038 | -1/Access | Spotted Investigator 31040 | -1/Access | Destroyed Investigator 31112 | -1/Access | Destroyed 52 combat bots 31186 | -1/Access | Spotted Striker 31186 | -1/Access | Spotted Executioner 31186 | -1/Access | Spotted Striker 31206 | -1/Access | Destroyed Striker 31209 | -1/Access | Destroyed Striker 31211 | -1/Access | Destroyed Executioner 31232 | -1/Access | Destroyed 11 combat bots 31243 | -1/Access | Entered Command 31245 | -1/Command | Identified Spectral Analyzer 31269 | -1/Command | Found Launcher Loader 31315 | -1/Command | Found Quantum Capacitor 31401 | -1/Command | High security lockdown imminent 31423 | -1/Command | Destroyed 10 combat bots 31439 | -1/Command | Spotted M Guard 31439 | -1/Command | Spotted M Guard 31439 | -1/Command | Spotted Combat Programmer 31441 | -1/Command | Destroyed M Guard 31447 | -1/Command | Spotted Combat Programmer 31451 | -1/Command | Destroyed Combat Programmer 31477 | -1/Command | Destroyed M Guard 31481 | -1/Command | High security lockdown engaged 31484 | -1/Command | Destroyed Combat Programmer 31484 | -1/Command | All MAIN.C guards destroyed 31527 | -1/Command | Met MAIN.C 31527 | -1/Command | 0b10 Conduit disabled 31531 | -1/Command | Destroyed MAIN.C Shell 31532 | -1/Command | MAIN.C activated Command garrisons 31539 | -1/Command | Zhirov used SGEMP to disable MAIN.C 31603 | -1/Command | Discovered exit to Surface (range 35) 31603 | -1/Command | Discovered exit to Surface (range 97) 31603 | -1/Command | Extracted map data and part IDs from MAIN.C's data core 31712 | -1/Command | Found Multirail 31723 | -1/Command | Found Exp. System Purifier 31746 | -1/Command | Found Exp. Target Analyzer 31969 | -1/Command | Found Multirail 32914 | -1/Command | Found Multirail 32922 | -1/Command | Found Multirail 33002 | -1/Command | Found Adv. Kinecellerator 33023 | -1/Command | Found Exp. Core Analyzer 33027 | -1/Command | Found Exp. Targeting Computer 33051 | -1/Command | Found Exp. Target Analyzer 33065 | -1/Command | Found Multirail 33141 | -1/Command | Found Multirail 33361 | -1/Command | Build established: Gunner 33447 | -1/Command | Found Multirail 33561 | -1/Command | Found Multirail 33875 | -1/Command | Found Multirail 35158 | -1/Command | Warped through subspace to slip node 35158 | -1/Command | Discovered new exit (range 4) 35169 | -1/Command | Entered Access_0 35172 | -1/Access_0 | Met Architect 35181 | -1/Access_0 | Architect warped through subspace 35188 | -1/Access_0 | Destroyed A8 35213 | -1/Access_0 | Architect warped through subspace 35248 | -1/Access_0 | Architect warped through subspace 35287 | -1/Access_0 | Architect warped through subspace 35299 | -1/Access_0 | Found Prototype Device 35300 | -1/Access_0 | Identified Desublimator 35304 | -1/Access_0 | Found Exp. Targeting Computer 35309 | -1/Access_0 | Found Exp. Weapon Cycler 35320 | -1/Access_0 | Architect warped through subspace 35350 | -1/Access_0 | Architect warped through subspace 35379 | -1/Access_0 | Architect warped through subspace 35399 | -1/Access_0 | Architect warped through subspace 35432 | -1/Access_0 | Architect warped through subspace 35450 | -1/Access_0 | Architect warped through subspace 35472 | -1/Access_0 | Architect warped through subspace 35498 | -1/Access_0 | Architect warped through subspace 35516 | -1/Access_0 | Architect warped through subspace 35555 | -1/Access_0 | Architect warped through subspace 35593 | -1/Access_0 | Architect warped through subspace 35624 | -1/Access_0 | Architect warped through subspace 35651 | -1/Access_0 | Subspace Access Node disabled 35666 | -1/Access_0 | Architect warped through subspace 35687 | -1/Access_0 | Found Exp. Targeting Computer 35694 | -1/Access_0 | Lost 4 parts (1n2u1w) 35707 | -1/Access_0 | Architect warped through subspace 35738 | -1/Access_0 | Architect warped through subspace 35770 | -1/Access_0 | Architect warped through subspace 35793 | -1/Access_0 | A6 warped into view 35815 | -1/Access_0 | Core integrity fell below 50% 35819 | -1/Access_0 | Destroyed A6 35829 | -1/Access_0 | Architect warped through subspace 35830 | -1/Access_0 | Subspace Access Node disabled 35852 | -1/Access_0 | Lost 5 parts (1n2u2w) 35854 | -1/Access_0 | Architect warped through subspace 35874 | -1/Access_0 | Architect warped through subspace 35901 | -1/Access_0 | Architect warped through subspace 35914 | -1/Access_0 | Build established: Scavenger-Gunner 35929 | -1/Access_0 | Architect warped through subspace 35960 | -1/Access_0 | Architect warped through subspace 35976 | -1/Access_0 | Found Exp. Phase Shifter 35979 | -1/Access_0 | Architect warped through subspace 35982 | -1/Access_0 | Found Exp. Targeting Computer 36002 | -1/Access_0 | Architect warped through subspace 36022 | -1/Access_0 | Architect warped through subspace 36033 | -1/Access_0 | Architect warped through subspace 36056 | -1/Access_0 | Architect warped through subspace 36081 | -1/Access_0 | Architect warped through subspace 36120 | -1/Access_0 | Architect warped through subspace 36173 | -1/Access_0 | Subspace Access Node disabled 36195 | -1/Access_0 | Core integrity fell below 20% 36256 | -1/Access_0 | Subspace Access Node disabled 36275 | -1/Access_0 | A5 warped into view 36299 | -1/Access_0 | Found Femtoactuators 36304 | -1/Access_0 | Found Enh. Force Lance 36316 | -1/Access_0 | Destroyed by Architect with Modified Sigix Sheargun Last Messages --------------- A5 warps into view. 36275_ Quantum Shear penetrates Wall. 36277_ Penetrated by Quantum Shear. 36277_ Quantum Shear penetrates Wall. 36280_ Penetrated by Quantum Shear. 36282_ Exp. Biometal Leg destroyed. 36282_ Penetrated by Quantum Shear. 36284_ Quantum Shear penetrates Wall. 36284_ Penetrated by Quantum Shear. 36294_ Quantum Shear penetrates Wall. 36296_ Penetrated by Quantum Shear. 36299_ Hcp. Storage Unit destroyed. 36299_ Penetrated by Quantum Shear. 36299_ Acquired Femtoactuators. 36301_ Penetrated by Quantum Shear. 36304_ Acquired Enh. Force Lance. 36307_ Quantum Shear penetrates Wall. 36313_ Prc. Energy Filter destroyed. 36314_ Quantum Shear penetrates A5. 36316_ Penetrated by Quantum Shear. Map ----- +----------------------------------------------------+ | """ " "" ##??????#" " #?????????????????? | | """## " #????#### " #????????????????? | | " #" ##????# ## "#"#############????? | | " ##"" "" #?????#"## " #????? | | # " !]""##????## ## ####"######" ###????? | | # " *!!!" ##??## ## #??????????" #??????? | | # """" ==" ###" " ##?????????# ##?????? | | # " ! ! !" # % "##???????## ##????? | | # " !!!! " " #??????## ##???? | | # """ " % #####???# ###?? | | #"" "" % #### #######"" #"? | | "#"## "; ### #???## #? | | "####" "";"" "" #???# ## | | ##### ##" "" "## #????# # | | "" #?# ### " ;" "# #?????# # | | "" ## #?# "# ! ; #### #?????# ## | | #### ##?# "## #;= !"#### ##?###" #"###? | | ""??##"#??# ##?## ;;=!%;!"##" ### " #??? | | ""???###??# #????#;# !!*""" "" ## #### | | "#????##??# #????# !!"!! " "" % ##?### | | "#??## #??# #????# !!! """ ###### # | | "#?# ##?# #????##; !"""" "" """"" | | #? #?# #?????##; #"#"#" ! ! | | #?# #??# #?????##; #"###" %% =%!]= | | "?# #??# #?????# ; ##"?#" """"!!%!= | | "## #??# #?????##;p@## "##" "# ####! | | #??# #????###;0 ; #"##?## "#????### | | #" ###?## ###??# g;# ##"##???## "" ?????? | | #" ""### #### ;### ##?????###" #????# | | ## ##; ;## #??????????? ##????? | | ?# ; ;; ;#"#????????????? ????? | | # ;#;;g ##????????????????????? | | ## #???????????????????? | | ?## ##; #???????????????????? | | ??## ""# ### ;;; "###???????????????????? | | ???#### ### ###;# ##?????????????????????? | | ??????####?# ##?### #??????????????????????? | | ???????????## ##????####??????????????????????? | | ????????????# #???????????????????????????????? | | ????????????# ???????????????????????????????? | | ??????????? # ??????????????????????????????? | | ?????????? ### #?????????????????????????????? | | ?????????######??? ??????????????????????????????? | | ???????????????????#?????????????????????????????? | | ?????????????????????????????????????????????????? | | ?????????????????????????????????????????????????? | | ?????????????????????????????????????????????????? | | ?????????????????????????????????????????????????? | | ?????????????????????????????????????????????????? | | ?????????????????????????????????????????????????? | +----------------------------------------------------+ Best States ------------- Heat Dissipation 172 Coolant Potential 80 Energy Generation 109 Energy Capacity 1224 Matter Stores 550 Matter Capacity 550 Sight Range 24 Robot Scan Range 18 Terrain Scan Range 16 Terrain Scan Density 10 Jamming Range 16 Additional Mass Support 25 Armor Coverage 1800 Resistance: KI 30 Resistance: EM 100 Point Defense Rating 240 Weapon Cycling 30 Melee Speed Boost 50 Phase Shifting 20 Evasion (%) 75 Targeting Accuracy 36 Target Analysis 10 Core Analysis 8 Armor Integrity Analysis 40 Recoil Reduction 6 Energy Filtering 50 Particle Charging 25 Kinecelleration 50 Offensive Hacking 26 Defensive Hacking 26 Authchip Count 3 Item Schematics ----------------- Adv. Targeting Computer | -8/Recycling | Hacked Missile Launcher | -8/Recycling | Hacked Flexi-carbon Leg | -8/Recycling | Hacked Lrn. Tractor Beam | -8/Recycling | Hacked Imp. Thermal Generator | -6/Zion | Archive Mapping Drone Bay | -6/Zion | Archive Enh. Optical Array | -6/Zion | Archive Imp. Proton Missile Launcher | -6/Zion | Archive Imp. Corruption Screen | -6/Zion | Archive Imp. Trap Scanner | -6/Zion | Archive Adv. Hardlight Generator | -6/Zion | Archive Impulse Thruster | -6/Zion | Archive 0b10 Decoder Chip [Skirmisher] | -6/Zion | Archive Hvy. Beamcaster | -6/Zion | Archive Beamcaster | -6/Zion | Archive KE Penetrator | -6/Zion | Archive Imp. Remote Datajack | -6/Zion | Archive Force Field | -6/Zion | Archive Imp. KE Penetrator | -6/Zion | Archive Imp. Hacking Suite | -5/Factory | Scanalyzed Multitool | -5/Factory | Scanalyzed Assault Drone Bay | -5/Zhirov | Free Exp. Heat Sink | -5/Zhirov | Free Exp. Optical Array | -5/Zhirov | Free Imp. Arc Thrower | -5/Zhirov | Free Exp. Targeting Computer | -4/Extension | Hacked Imp. Kinecellerator | -4/Extension | Hacked Cmb. Linear Gravjet | -4/Hub_04(d) | Hacked Enh. Armored Heavy Treads | -3/Research | Hacked Centrium Heavy Armor Plating | -3/Quarantine | Archive Prc. Energy Filter | -3/Quarantine | Archive Exp. System Shield | -3/Quarantine | Archive Coolant Network | -3/Section 7 | Archive Diametric Drive | -3/Section 7 | Archive Exp. Coolant Injector | -3/Section 7 | Archive Cld. Antigrav System | -3/Section 7 | Archive Adv. Matter Compressor | -3/Section 7 | Archive Cld. Nuclear Pulse Thruster | -3/Section 7 | Archive Exp. Myomer Leg | -3/Section 7 | Archive Enh. Coil Gun | -3/Section 7 | Archive Prc. Phase Gun | -3/Section 7 | Archive Proton Burst Cannon | -2/Testing | Archive Exp. Cooling System | -2/Testing | Archive Centrium Medium Armor Plating | -2/Testing | Archive Exp. Field Recycling Unit | -2/Testing | Archive Imp. Energy Mantle | -2/Testing | Archive Robot Schematics ------------------ Y-45 Defender | -8/Recycling | Hacked A-15 Conveyor | -6/Zion | Archive S-27 Virus | -6/Zion | Archive H-66 Slayer | -6/Zion | Archive S-43 Plague | -3/Quarantine | Archive W-44 Eye | -3/Section 7 | Archive Y-72 Warden | -2/Testing | Archive Fabricated ------------ Y-45 Defender | x2 | -6/Factory | Authchip Y-45 Defender | x2 | -6/Factory | Authchip L-41 Fighter | x3 | -6/Factory | Preloaded Mapping Drone Bay | x1 | -5/Factory Exp. Optical Array | x1 | -4/Factory Enh. Armored Heavy Treads | x1 | -3/Research Hdn. Centrium Leg | x1 | -2/Research | Preloaded Alien Tech Used ----------------- Integrated Dissipator Core Stripper Core Cannon Integrated Reactor Integrated Mediator LRC Insulator LRC Matter Compressor Subatomic Replicator Transdimensional Reconstructor Achievements -------------- None Challenges ------------ None Game ------ Seed PortableHoverSink Manual? 0 Play Time 07:29:15 Cumulative 422.0 hours Start 2024.01.12 @ 23:51:09 End 2024.01.13 @ 23:34:40 Sessions 3 Manual Loads 0 Difficulty Rogue Special Mode None Game No. 152 Rogue 137 Adventurer 15 Explorer 0 Win Type - Total 26 Types 7/1/7/2/2/0/4/2/1 Lore% 89 Gallery% 91 Achievement% 83 Wizard Run 0 Options --------- ASCII 0 Keyboard 0 Movement Numpad Keybinds 0 Fullscreen 1 Font 18/SmallcapsGlow Map View 76x50 Zoom Use 0% Tactical HUD 1 Map Filters NONE Filters NONE Steam 1 RUN: 06adefee-ec62-4586-bf41-f4585fbb1649